﻿Organisation Name,Organisation Code,Effective Date,Directorate,Service Category,Service Category URI,Supplier Name,Payment Date,Transaction Number,Net Amount,Irrecoverable VAT,Purpose_of_the_expenditure,Merchant Category
Wyre Council,http://opendatacommunities.org/doc/district-council/wyre,29/04/2022,Resources,Planning and Development Servs,132C,Daisy Communications LTD,26/04/2022,RS140870,37.97 ,0.00,Monthly Charges,Advertising - General
Wyre Council,http://opendatacommunities.org/doc/district-council/wyre,29/04/2022,People and Places,Cultural and Related Services,132A,Destination UK LTD,13/04/2022,PE140519,798.00 ,0.00,double page advert for Groups to Wyre 2022 in `Discover Britain for Groups` - first side         - Discover Wyre  - second side  - Fleetwood Market,Advertising - General
Wyre Council,http://opendatacommunities.org/doc/district-council/wyre,29/04/2022,People and Places,Planning and Development Servs,132C,JPI Media Publishig LTD,26/04/2022,PE141066,561.60 ,0.00,Press notice for Garstang Courier and Blackpool Gazette on Wednesday 13th April 2022,Advertising - Statutory Notices
Wyre Council,http://opendatacommunities.org/doc/district-council/wyre,29/04/2022,People and Places,Support Services,135B,M J Wilkinson,25/04/2022,PE141016,211.20 ,0.00,MISC LABOUR GENERIC EMT,Agency Staff
Wyre Council,http://opendatacommunities.org/doc/district-council/wyre,29/04/2022,People and Places,Support Services,135B,M J Wilkinson,25/04/2022,PE141015,277.20 ,0.00,MISC LABOUR GENERIC EMT,Agency Staff
Wyre Council,http://opendatacommunities.org/doc/district-council/wyre,29/04/2022,People and Places,Support Services,135B,M J Wilkinson,25/04/2022,PE141014,488.40 ,0.00,MISC LABOUR GENERIC EMT,Agency Staff
Wyre Council,http://opendatacommunities.org/doc/district-council/wyre,29/04/2022,People and Places,Support Services,135B,M J Wilkinson,25/04/2022,PE141017,140.40 ,0.00,MISC LABOUR GENERIC EMT,Agency Staff
Wyre Council,http://opendatacommunities.org/doc/district-council/wyre,29/04/2022,People and Places,Support Services,135B,M J Wilkinson,25/04/2022,PE141017,43.54 ,0.00,MISC LABOUR GENERIC EMT,Agency Staff
Wyre Council,http://opendatacommunities.org/doc/district-council/wyre,29/04/2022,People and Places,Support Services,135B,M J Wilkinson,25/04/2022,PE141017,198.86 ,0.00,MISC LABOUR GENERIC EMT,Agency Staff
Wyre Council,http://opendatacommunities.org/doc/district-council/wyre,29/04/2022,Resources,Support Services,135B,Daisy Communications LTD,26/04/2022,RS140870,9.48 ,0.00,Monthly Charges,Alarm Systems and Security - Annual
Wyre Council,http://opendatacommunities.org/doc/district-council/wyre,29/04/2022,Resources,Cultural and Related Services,132A,Mono Alarm  Installations Ltd,25/04/2022,RS140987,"-1,290.00 ",0.00,Annual maintenance for the period 01/12/21-30/11/22,Alarm Systems and Security - Annual
Wyre Council,http://opendatacommunities.org/doc/district-council/wyre,29/04/2022,People and Places,Cultural and Related Services,132A,M D Security,11/04/2022,PE140729,"1,330.00 ",0.00,Rossall tower upgrade cctv,Alarm Systems and Security - Responsive
Wyre Council,http://opendatacommunities.org/doc/district-council/wyre,29/04/2022,Finance,Corporate and Democratic Core,131A,NATWEST BANK,11/04/2022,WPST00043731,741.43 ,0.00,natwest bank charges,Bank Charges
Wyre Council,http://opendatacommunities.org/doc/district-council/wyre,29/04/2022,People and Places,Cultural and Related Services,132A,Lancashire County Council,13/04/2022,PE140886,"3,514.00 ",0.00,Subscription to LERN (FAO Nik Bruce),Biodiversity Duty
Wyre Council,http://opendatacommunities.org/doc/district-council/wyre,29/04/2022,People and Places,Environmental Services,132B,AMBER CONSULTANCY (MARPLE) LTD,19/04/2022,PE140686,"1,525.00 ",0.00,100 x C inspections to be completed prior to 31.3.22 at £50 per inspection total £5000 (plus VAT ),Brexit EHC Costs
Wyre Council,http://opendatacommunities.org/doc/district-council/wyre,29/04/2022,People and Places,Environmental Services,132B,M D Security,11/04/2022,PE140730,250.00 ,0.00,CCTV 6 MONTHLY SERVICE CHATSWORTH,CCTV Running Costs
Wyre Council,http://opendatacommunities.org/doc/district-council/wyre,29/04/2022,People and Places,Planning and Development Servs,132C,Key Engineering & Hygiene Supplies LTD,12/04/2022,PE140810,33.36 ,0.00,"PINKPEARL/5LTR 4 PINK PEARL PEARLISED HAND, WASH & HAIR SHAMPOO 5 LTR 8.34 EACH 33.36",Cleaning Materials
Wyre Council,http://opendatacommunities.org/doc/district-council/wyre,29/04/2022,People and Places,Planning and Development Servs,132C,Key Engineering & Hygiene Supplies LTD,12/04/2022,PE140810,34.56 ,0.00,GPLEMONGEL/5LTR 4 GENERAL PURPOSE LEMON CITRUS VISCOUS GEL 5LTR 8.64 EACH 34.56,Cleaning Materials
Wyre Council,http://opendatacommunities.org/doc/district-council/wyre,29/04/2022,People and Places,Planning and Development Servs,132C,Key Engineering & Hygiene Supplies LTD,12/04/2022,PE140810,41.52 ,0.00,SPD1026 24 LEMON AIR FRESHENER 400ML 1.73 EACH 41.52,Cleaning Materials
Wyre Council,http://opendatacommunities.org/doc/district-council/wyre,29/04/2022,People and Places,Planning and Development Servs,132C,Key Engineering & Hygiene Supplies LTD,12/04/2022,PE140810,26.80 ,0.00,"102266B 20 200G PY EXEL SOCKET MOP BLUE 1.34 EACH 26.80DELIVERY TO WYRE COUNCIL, COPSE ROAD DEPOT, COPSE ROAD, FLEETWOOD, FY7 6RP",Cleaning Materials
Wyre Council,http://opendatacommunities.org/doc/district-council/wyre,29/04/2022,People and Places,Planning and Development Servs,132C,Key Engineering & Hygiene Supplies LTD,12/04/2022,PE140810,150.40 ,0.00,PLEASE SUPPLY AND DELIVER AS PER QUOTATION 13226 15/3/22DELTA6BE 10 BLUE 2 PLY CENTREFEED ROLLS 150M X 175MM EMBOSSED 15.04 EACH 150.40,Cleaning Materials
Wyre Council,http://opendatacommunities.org/doc/district-council/wyre,29/04/2022,People and Places,Planning and Development Servs,132C,Key Engineering & Hygiene Supplies LTD,12/04/2022,PE140810,37.68 ,0.00,EVERFRESHAPPLE/1LTR 24 EVERFRESH NON ACIDIC APPLE TOILET CLEANER 1LTR 1.57 EACH 37.68,Cleaning Materials
Wyre Council,http://opendatacommunities.org/doc/district-council/wyre,29/04/2022,Resources,Support Services,135B,AVC WISE LTD,14/04/2022,RS140904,551.91 ,0.00,Invoice Number: 102416,Commission Fees Etc.
Wyre Council,http://opendatacommunities.org/doc/district-council/wyre,29/04/2022,Resources,Support Services,135B,ACR IT Solutions Ltd,27/04/2022,RS140726,"17,820.00 ",0.00,"Dell EMC ME4024 All Flash Storage ArrayComponents:ME Series 2U Bezel9 * Hard Drive Filler 2.5in, single blank15 * 1.92TB SSD SAS RI 12Gbps 512 2.5in Hot-plug AG DriveCNC 8 Port Dual Controller for iSCSI SFP+ and/or FC4 * Dell EMC PowerEdge SFP",Comp Hardware Purchases
Wyre Council,http://opendatacommunities.org/doc/district-council/wyre,29/04/2022,Resources,Support Services,135B,ACR IT Solutions Ltd,27/04/2022,RS140726,"3,680.00 ",0.00,"Dell EMC 10G iSCSI Switch S4112FComponents:12 * 10GbE SFP+3 * 100GbE QSFP28IO to FANDual AC PSURack Rail Dual Tray, 4-post rack only for S4112Software:OS10 Enterprise versionService:3Yr ProSupport and 4hr Mission Critical",Comp Hardware Purchases
Wyre Council,http://opendatacommunities.org/doc/district-council/wyre,29/04/2022,Resources,Support Services,135B,ACR IT Solutions Ltd,27/04/2022,RS140726,"2,180.00 ",0.00,Dell EMC 10G iSCSI Network AdapterDual Port 10G SFP+ Network Adapter,Comp Hardware Purchases
Wyre Council,http://opendatacommunities.org/doc/district-council/wyre,29/04/2022,Resources,Support Services,135B,ACR IT Solutions Ltd,27/04/2022,RS140726,744.00 ,0.00,"Dell EMC 10G iSCSI CablesDell Networking, Cable, SFP+ to SFP+, 10GbE, DAC, 5 Meter",Comp Hardware Purchases
Wyre Council,http://opendatacommunities.org/doc/district-council/wyre,29/04/2022,Resources,Support Services,135B,ACR IT Solutions Ltd,27/04/2022,RS140726,"6,280.00 ",0.00,"Migration ServicesRack, Stack, Cable new VDI Storage ArrayFirmware upgrade new SANEvacuate VMs from first VDI HostEnter maintenance modePower down, remove SAS HBA, install 10G adapterCable to new VDI SANpower on VDI host, add to clusterRep",Comp Hardware Purchases
Wyre Council,http://opendatacommunities.org/doc/district-council/wyre,29/04/2022,Resources,Support Services,135B,THE NETWORKING PEOPLE (TNP) LTD,11/04/2022,RS140605,860.28 ,0.00,FAP-431F-E - FortiAP: FortiAP-431F,Comp Hardware Purchases
Wyre Council,http://opendatacommunities.org/doc/district-council/wyre,29/04/2022,Resources,Support Services,135B,THE NETWORKING PEOPLE (TNP) LTD,11/04/2022,RS140605,328.48 ,0.00,FC-10-F431F-247-02-36 - FortiAP Services,Comp Hardware Purchases
Wyre Council,http://opendatacommunities.org/doc/district-council/wyre,29/04/2022,Resources,Support Services,135B,THE NETWORKING PEOPLE (TNP) LTD,11/04/2022,RS140605,15.00 ,0.00,Delivery,Comp Hardware Purchases
Wyre Council,http://opendatacommunities.org/doc/district-council/wyre,29/04/2022,Resources,Support Services,135B,CCS MEDIA LTD,13/04/2022,RS140604,691.80 ,0.00,01FR155 Lenovo AC Adapter UK - ADLX65CCGK2A 20V3.25A COO **New Retail** - Approx 1-3 working day lead.,Comp Hardware Purchases
Wyre Council,http://opendatacommunities.org/doc/district-council/wyre,29/04/2022,Resources,Support Services,135B,Amazon Business,26/04/2022,RS141043,27.78 ,0.00,"Memory Card Reader, BENFEI 4in1 USB USB-C to SD Micro SD MS CF Card Reader Adapter",Comp Hardware Purchases
Wyre Council,http://opendatacommunities.org/doc/district-council/wyre,29/04/2022,Resources,Support Services,135B,Amazon Business,28/04/2022,RS141159,185.20 ,0.00,"Logitech C270 HD Webcam, HD 720p/30fps, Widescreen HD Video Calling, HD Light Correction, Noise-Reducing Mic, For Skype, FaceTime, Hangouts, WebEx, PC/Mac/Laptop/Macbook/Tablet - Black",Comp Hardware Purchases
Wyre Council,http://opendatacommunities.org/doc/district-council/wyre,29/04/2022,Resources,Support Services,135B,Amazon Business,28/04/2022,RS141044,235.40 ,0.00,"Logitech H390 Wired Headset, Stereo Headphones with Noise-Cancelling Microphone, USB, In-Line Controls, PC/Mac/Laptop - Black",Comp Hardware Purchases
Wyre Council,http://opendatacommunities.org/doc/district-council/wyre,29/04/2022,Resources,Support Services,135B,Amazon Business,28/04/2022,RS141163,58.50 ,0.00,"REALMAX® 2M Displayport to DVI Cable, DP to DVI-D 24+1 Cable Adapter, Male to Male Dual Link Gold-Plated Lead 24K Support 1080P.",Comp Hardware Purchases
Wyre Council,http://opendatacommunities.org/doc/district-council/wyre,29/04/2022,Resources,Support Services,135B,Amazon Business,28/04/2022,RS141161,53.40 ,0.00,New Horrizon - Mouse Mat BLACK ANTI-SLIP COMFORT MOUSE PAD MAT WITH GEL FOAM REST WRIST SUPPORT FOR PC LAPTOP - Compatible with Laser and Optical Mice,Computer Stationery and Consumables
Wyre Council,http://opendatacommunities.org/doc/district-council/wyre,29/04/2022,People and Places,Planning and Development Servs,132C,Kings Chambers,11/04/2022,PE140791,"1,575.00 ",0.00,Local plan review for the period 2021/2022,Consultants Fees
Wyre Council,http://opendatacommunities.org/doc/district-council/wyre,29/04/2022,People and Places,Planning and Development Servs,132C,Duxburys Commercial,26/04/2022,PE141062,"8,250.00 ",0.00,Professional Valuation and Lease advisory services in relation to Project Neptune. Second Tranche of work £6000 + VATPlus additional 3 weeks work £2250 + VAT. This is the final bill.,Consultants Fees
Wyre Council,http://opendatacommunities.org/doc/district-council/wyre,29/04/2022,People and Places,Planning and Development Servs,132C,Keppie Massie,11/04/2022,PE140779,"1,250.00 ",0.00,Infrastructure Viability advice provided by Keppie Massie,Consultants Fees
Wyre Council,http://opendatacommunities.org/doc/district-council/wyre,29/04/2022,People and Places,Planning and Development Servs,132C,Keppie Massie,11/04/2022,PE140779,750.00 ,0.00,Additional cost for the infrastructure viability advise,Consultants Fees
Wyre Council,http://opendatacommunities.org/doc/district-council/wyre,29/04/2022,Resources,Central Services to the Public,131C,Inform CPI,13/04/2022,RS140507,"2,905.00 ",0.00,Analyse & Localise 2022  Analyse Local - Forecasting   CT Finder   SBRR Audit   Virtual Rates Manager,Consultants Fees
Wyre Council,http://opendatacommunities.org/doc/district-council/wyre,29/04/2022,People and Places,Planning and Development Servs,132C,Vivid Resourcing Ltd,11/04/2022,PE140772,"1,665.00 ",0.00,Additional costs for Andrew Cowley up to the 14th April 2022,Consultants Fees
Wyre Council,http://opendatacommunities.org/doc/district-council/wyre,29/04/2022,People and Places,Planning and Development Servs,132C,Vivid Resourcing Ltd,13/04/2022,PE139974,"1,620.00 ",0.00,Additional costs for Andrew Cowley up to the 14th April 2022,Consultants Fees
Wyre Council,http://opendatacommunities.org/doc/district-council/wyre,29/04/2022,People and Places,Planning and Development Servs,132C,Vivid Resourcing Ltd,19/04/2022,PE140246,"1,665.00 ",0.00,Additional costs for Andrew Cowley up to the 14th April 2022,Consultants Fees
Wyre Council,http://opendatacommunities.org/doc/district-council/wyre,29/04/2022,People and Places,Planning and Development Servs,132C,Vivid Resourcing Ltd,19/04/2022,PE140552,90.00 ,0.00,Additional Costs for Andrew Cowley - enforcement cover,Consultants Fees
Wyre Council,http://opendatacommunities.org/doc/district-council/wyre,29/04/2022,People and Places,Planning and Development Servs,132C,Vivid Resourcing Ltd,19/04/2022,PE140552,"1,575.00 ",0.00,Additional costs for Andrew Cowley up to the 14th April 2022,Consultants Fees
Wyre Council,http://opendatacommunities.org/doc/district-council/wyre,29/04/2022,People and Places,"Cultural, Environ and Planning",137B,Wyre Rivers Trust,11/04/2022,PE140744,"6,500.00 ",0.00,Eco-COBS Armhill Site Project Management Services,Consultants Fees (New CCR)
Wyre Council,http://opendatacommunities.org/doc/district-council/wyre,29/04/2022,People and Places,"Cultural, Environ and Planning",137B,Susannah Bleakley Consulting,22/04/2022,PE141013,"7,657.30 ",0.00,ECO-CoBS Project,Consultants Fees (New CCR)
Wyre Council,http://opendatacommunities.org/doc/district-council/wyre,29/04/2022,People and Places,"Cultural, Environ and Planning",137B,GARRY CARR BUILDING SERVICES LTD,19/04/2022,PE140912,334.00 ,0.00,HAZ structural surveys,Consultants Fees (New CCR)
Wyre Council,http://opendatacommunities.org/doc/district-council/wyre,29/04/2022,Resources,Central Services to the Public,131C,Blackpool Council,14/04/2022,RS140906,"3,352.00 ",0.00,"AD HOC CHARGES COVID Vaccination van charges March 2022 4 x sessions @ £838.00 5th,12th,19th,26th March 2022",Contain Outbreak Management Fund
Wyre Council,http://opendatacommunities.org/doc/district-council/wyre,29/04/2022,Resources,Central Services to the Public,131C,Blackpool Council,14/04/2022,RS140906,364.82 ,0.00,"AD HOC CHARGES Additional Vaccine Guarantee Charges 5th, 12th, 19th March 202",Contain Outbreak Management Fund
Wyre Council,http://opendatacommunities.org/doc/district-council/wyre,29/04/2022,People and Places,"Cultural, Environ and Planning",137B,Landscape Engineering LTD,13/04/2022,PE140890,"29,540.08 ",0.00,"External works at Custom House Car Park, Fleetwood (Historic England Heritage Action Zone Project).",Contract (New CCR)
Wyre Council,http://opendatacommunities.org/doc/district-council/wyre,29/04/2022,People and Places,Non Service Related Exp,137F,M D Security,25/04/2022,PE141019,"14,750.00 ",0.00,Supply and install new approved cctv system within Fleetwood market to cover internal and external areas,Contract (New CCR)
Wyre Council,http://opendatacommunities.org/doc/district-council/wyre,29/04/2022,Resources,"Cultural, Environ and Planning",137B,VODAFONE LIMITED,12/04/2022,RS140490,24.00 ,0.00,Monthly Charges,Contract (New CCR)
Wyre Council,http://opendatacommunities.org/doc/district-council/wyre,29/04/2022,People and Places,"Cultural, Environ and Planning",137B,Balfour Beatty Civil Engineering Ltd,26/04/2022,PE140855,"10,437.07 ",0.00,"FAO Chloe SumnerBalfour Beatty Civil Engineering LtdChaddock Lane WorsleyManchesterM28 1XYTel, 0161 638 0800 Chloe.Sumner@balfourbeatty.com Wyre Beach Management Scheme Phase 2 - Preconstruction Works.Cost £1,313,701.70",Contract (New CCR)
Wyre Council,http://opendatacommunities.org/doc/district-council/wyre,29/04/2022,People and Places,"Cultural, Environ and Planning",137B,Balfour Beatty Civil Engineering Ltd,26/04/2022,PE140854,"11,705.35 ",0.00,Wyre Beach Management Scheme Phase 1 - Preconstruction Works.FAO Chloe SumnerBalfour Beatty Civil Engineering LtdChaddock Lane WorsleyManchesterM28 1XY,Contract (New CCR)
Wyre Council,http://opendatacommunities.org/doc/district-council/wyre,29/04/2022,People and Places,Support Services,135B,C I E H,11/04/2022,PE140724,515.00 ,0.00,Renew EHCnet Subscription fee for 2022-23 The subscription fee for 1st April 2022 – 31st March 2023 will be:                                   £ 515.00 + VAT,Corporate and Professional Subscriptions
Wyre Council,http://opendatacommunities.org/doc/district-council/wyre,29/04/2022,Resources,Corporate and Democratic Core,131A,North West Employers,21/04/2022,RS140982,"4,293.66 ",0.00,Full Member`s subscription April 22 to March 23,Corporate and Professional Subscriptions
Wyre Council,http://opendatacommunities.org/doc/district-council/wyre,29/04/2022,Resources,Support Services,135B,LG FUTURES LTD,11/04/2022,RS140746,"5,495.00 ",0.00,Collection Fund Suite subscription 2022/23,Corporate and Professional Subscriptions
Wyre Council,http://opendatacommunities.org/doc/district-council/wyre,29/04/2022,Resources,Cultural and Related Services,132A,VODAFONE LIMITED,12/04/2022,RS140490,24.00 ,0.00,Monthly Charges,Corporate and Professional Subscriptions
Wyre Council,http://opendatacommunities.org/doc/district-council/wyre,29/04/2022,Finance,Current Assets,130B,,26/04/2022,WPST00046138,"21,588.50 ",0.00,,Council Tax Refunds
Wyre Council,http://opendatacommunities.org/doc/district-council/wyre,29/04/2022,Finance,Current Assets,130B,,11/04/2022,WPST00044014,"23,142.07 ",0.00,ctax refunds 1/4,Council Tax Refunds
Wyre Council,http://opendatacommunities.org/doc/district-council/wyre,29/04/2022,People and Places,Environmental Services,132B,Bucher Municipal Limited,19/04/2022,PE140790,142.17 ,0.00,4 x Wheel Nozzle. 8`` Dia Assy,Daywork Materials (Excl.Tyres)
Wyre Council,http://opendatacommunities.org/doc/district-council/wyre,29/04/2022,People and Places,Environmental Services,132B,Bucher Municipal Limited,19/04/2022,PE140769,386.25 ,0.00,Fault Diagnosis & Parts - LJ18 DWX,Daywork Materials (Excl.Tyres)
Wyre Council,http://opendatacommunities.org/doc/district-council/wyre,29/04/2022,People and Places,Environmental Services,132B,Bucher Municipal Limited,19/04/2022,PE140790,142.17 ,0.00,4 x Wheel Nozzle. 8`` Dia Assy,Daywork Materials (Excl.Tyres)
Wyre Council,http://opendatacommunities.org/doc/district-council/wyre,29/04/2022,People and Places,Environmental Services,132B,Bucher Municipal Limited,19/04/2022,PE140790,142.17 ,0.00,4 x Wheel Nozzle. 8`` Dia Assy,Daywork Materials (Excl.Tyres)
Wyre Council,http://opendatacommunities.org/doc/district-council/wyre,29/04/2022,People and Places,Environmental Services,132B,Bucher Municipal Limited,19/04/2022,PE140790,142.17 ,0.00,4 x Wheel Nozzle. 8`` Dia Assy,Daywork Materials (Excl.Tyres)
Wyre Council,http://opendatacommunities.org/doc/district-council/wyre,29/04/2022,People and Places,Cultural and Related Services,132A,L W C Drinks LTD,11/04/2022,PE140784,"1,175.26 ",0.00,Marine Hall Bar,Drinks
Wyre Council,http://opendatacommunities.org/doc/district-council/wyre,29/04/2022,People and Places,Environmental Services,132B,Bryt Energy Limited,26/04/2022,PE140880,47.29 ,0.00,Electricity charges for the period 01/03/22-31/03/22,Electricity
Wyre Council,http://opendatacommunities.org/doc/district-council/wyre,29/04/2022,People and Places,Planning and Development Servs,132C,Bryt Energy Limited,26/04/2022,PE140874,"1,102.96 ",0.00,Electricity charges for the period 01/03/22-31/03/22,Electricity
Wyre Council,http://opendatacommunities.org/doc/district-council/wyre,29/04/2022,People and Places,Planning and Development Servs,132C,Bryt Energy Limited,26/04/2022,PE140878,"3,286.87 ",0.00,Electricity charges for the period 01/03/22-31/03/22,Electricity
Wyre Council,http://opendatacommunities.org/doc/district-council/wyre,29/04/2022,People and Places,Support Services,135B,Bryt Energy Limited,26/04/2022,PE140879,"5,925.43 ",0.00,Electricity charges for the period 01/03/22-31/03/22,Electricity
Wyre Council,http://opendatacommunities.org/doc/district-council/wyre,29/04/2022,People and Places,Cultural and Related Services,132A,Bryt Energy Limited,26/04/2022,PE140875,"3,887.74 ",0.00,Electricity charges for the period 01/03/22-31/03/22,Electricity
Wyre Council,http://opendatacommunities.org/doc/district-council/wyre,29/04/2022,People and Places,Cultural and Related Services,132A,Bryt Energy Limited,26/04/2022,PE140876,481.63 ,0.00,Electricity charges for the period 01/03/22-31/03/22,Electricity
Wyre Council,http://opendatacommunities.org/doc/district-council/wyre,29/04/2022,People and Places,Cultural and Related Services,132A,Bryt Energy Limited,26/04/2022,PE140877,140.52 ,0.00,Electricity charges for the period 01/03/22-31/03/22,Electricity
Wyre Council,http://opendatacommunities.org/doc/district-council/wyre,29/04/2022,Finance,Central Services to the Public,131C,,28/04/2022,WPST00046353,"814,350.00 ",0.00,£150 energy rebate,Energy Rebate Payment
Wyre Council,http://opendatacommunities.org/doc/district-council/wyre,29/04/2022,Finance,Central Services to the Public,131C,,26/04/2022,WPST00046140,"405,450.00 ",0.00,£150 Energy Grants,Energy Rebate Payment
Wyre Council,http://opendatacommunities.org/doc/district-council/wyre,29/04/2022,People and Places,Cultural and Related Services,132A,Fylde Coast YMCA,13/04/2022,PE140171,"5,180.00 ",0.00,Thornton YMCA - Weight Management Your Move pilot project,External Coaching
Wyre Council,http://opendatacommunities.org/doc/district-council/wyre,29/04/2022,Resources,Cultural and Related Services,132A,Fylde Coast Holiday Club,27/04/2022,RS141098,"3,740.00 ",0.00,Delivery of Easter Holiday Activity and Food programme£15.20 per place including food provision,External Coaching
Wyre Council,http://opendatacommunities.org/doc/district-council/wyre,29/04/2022,People and Places,Cultural and Related Services,132A,SD SSC Limited T/A Sportscool Fylde,26/04/2022,PE141088,"2,800.00 ",0.00,Delivery of Easter Holiday Activity and Food programme £20 per place including food provision,External Coaching
Wyre Council,http://opendatacommunities.org/doc/district-council/wyre,29/04/2022,People and Places,Public Transport,133G,Wyre Marine Services,11/04/2022,PE140727,"1,800.00 ",0.00,shackles and ropes re running lines,Ferry Dock Maintenance
Wyre Council,http://opendatacommunities.org/doc/district-council/wyre,29/04/2022,People and Places,Environmental Services,132B,NWIFCA      N W Inshore Fisheries and Conservation,21/04/2022,PE140985,"3,300.00 ",0.00,For shellfish collection April 2021- March 2022,Food and Drug Etc Samples
Wyre Council,http://opendatacommunities.org/doc/district-council/wyre,29/04/2022,People and Places,Support Services,135B,Allstar Business Solutions LTD,25/04/2022,PE140950,295.79 ,0.00,Fuel Charges,Fuel
Wyre Council,http://opendatacommunities.org/doc/district-council/wyre,29/04/2022,People and Places,Support Services,135B,Allstar Business Solutions LTD,25/04/2022,PE140950,68.32 ,0.00,Fuel Charges,Fuel
Wyre Council,http://opendatacommunities.org/doc/district-council/wyre,29/04/2022,People and Places,Cultural and Related Services,132A,Allstar Business Solutions LTD,25/04/2022,PE140950,68.06 ,0.00,Fuel Charges,Fuel
Wyre Council,http://opendatacommunities.org/doc/district-council/wyre,29/04/2022,Resources,Cultural and Related Services,132A,Visual Print and Design Ltd,25/04/2022,RS141053,270.00 ,0.00,"2000 x Garstang Walking Festival A5 8pp bookletDelivery on or before Thursday 14 April, no laterDeliver to Civic Centre FAO Alison Boden",Garstang Walking Festival
Wyre Council,http://opendatacommunities.org/doc/district-council/wyre,29/04/2022,People and Places,Cultural and Related Services,132A,Keep Britain Tidy,11/04/2022,PE140740,530.00 ,0.00,seaside award Cleveleys Jubilee Beach (Bathing water),Green Flag and Other Awards
Wyre Council,http://opendatacommunities.org/doc/district-council/wyre,29/04/2022,People and Places,Cultural and Related Services,132A,Keep Britain Tidy,11/04/2022,PE140743,530.00 ,0.00,Rossall beach Cleveley`s  (non bathing water),Green Flag and Other Awards
Wyre Council,http://opendatacommunities.org/doc/district-council/wyre,29/04/2022,People and Places,Cultural and Related Services,132A,Keep Britain Tidy,11/04/2022,PE140742,530.00 ,0.00,"Ferry Beach Fleetwood, non bathing",Green Flag and Other Awards
Wyre Council,http://opendatacommunities.org/doc/district-council/wyre,29/04/2022,People and Places,Cultural and Related Services,132A,Keep Britain Tidy,11/04/2022,PE140741,530.00 ,0.00,Fleetwood marine beach (Bathing water),Green Flag and Other Awards
Wyre Council,http://opendatacommunities.org/doc/district-council/wyre,29/04/2022,People and Places,Cultural and Related Services,132A,Fylde Coast YMCA,13/04/2022,PE138527,125.00 ,0.00,Craft painting - Fun Arts sessions in activity hall at Garstang Leisure centre,Healthier Fleetwood Events & Activities
Wyre Council,http://opendatacommunities.org/doc/district-council/wyre,29/04/2022,People and Places,Support Services,135B,M J Wilkinson,25/04/2022,PE141020,84.46 ,0.00,Hire of Hitachi 2x19@ Preesall 14/3/22 1 day @ 42.24 per day Transport plus fuel,Hire of Tools or Equipment
Wyre Council,http://opendatacommunities.org/doc/district-council/wyre,29/04/2022,People and Places,Support Services,135B,M J Wilkinson,25/04/2022,PE141021,95.90 ,0.00,Hire of Bomag 120 Roller W/e 27/3/22  1 day @ 43.08 per day each way transport and fuel,Hire of Tools or Equipment
Wyre Council,http://opendatacommunities.org/doc/district-council/wyre,29/04/2022,Resources,Housing General Fund,134A,Creative Support LTD,11/04/2022,RS140722,"7,025.50 ",0.00,Tenancy Support Fees - 28/03/2022,Homelessness Tenancy Support
Wyre Council,http://opendatacommunities.org/doc/district-council/wyre,29/04/2022,People and Places,Environmental Services,132B,Poulton Pets LTD,12/04/2022,PE140849,"1,537.50 ",0.00,Provision of stray dog kennelling service 2021/22,Impounded Dogs Costs
Wyre Council,http://opendatacommunities.org/doc/district-council/wyre,29/04/2022,Resources,Cultural and Related Services,132A,Daisy Communications LTD,26/04/2022,RS140870,24.47 ,0.00,Monthly Charges,Internet and Telephone Charges
Wyre Council,http://opendatacommunities.org/doc/district-council/wyre,29/04/2022,Resources,Corporate and Democratic Core,131A,Daisy Communications LTD,26/04/2022,RS140870,9.49 ,0.00,Monthly Charges,Internet and Telephone Charges
Wyre Council,http://opendatacommunities.org/doc/district-council/wyre,29/04/2022,Resources,Cultural and Related Services,132A,Daisy Communications LTD,26/04/2022,RS140870,9.48 ,0.00,Monthly Charges,Internet and Telephone Charges
Wyre Council,http://opendatacommunities.org/doc/district-council/wyre,29/04/2022,Resources,Support Services,135B,Daisy Communications LTD,26/04/2022,RS140870,15.00 ,0.00,Monthly Charges,Internet and Telephone Charges
Wyre Council,http://opendatacommunities.org/doc/district-council/wyre,29/04/2022,Resources,Support Services,135B,Daisy Communications LTD,26/04/2022,RS140870,38.48 ,0.00,Monthly Charges,Internet and Telephone Charges
Wyre Council,http://opendatacommunities.org/doc/district-council/wyre,29/04/2022,Resources,Support Services,135B,Daisy Communications LTD,26/04/2022,RS140870,18.96 ,0.00,Monthly Charges,Internet and Telephone Charges
Wyre Council,http://opendatacommunities.org/doc/district-council/wyre,29/04/2022,Resources,Central Services to the Public,131C,Lancashire County Council,11/04/2022,RS140768,511.50 ,0.00,Wyre Council Con29 Searches for February 2022 - 33 @ £15.50 each,L.C.C. Search Fees
Wyre Council,http://opendatacommunities.org/doc/district-council/wyre,29/04/2022,Resources,Central Services to the Public,131C,Lancashire County Council,11/04/2022,RS140768,589.00 ,0.00,Wyre Council Con29 Searches for January 2022 - 38 @ £15.50 each,L.C.C. Search Fees
Wyre Council,http://opendatacommunities.org/doc/district-council/wyre,29/04/2022,Resources,Support Services,135B,Forbes Solicitors,12/04/2022,RS140802,85.00 ,0.00,Employment Advice - Inv No 591379 - March 2022,Legal Fees
Wyre Council,http://opendatacommunities.org/doc/district-council/wyre,29/04/2022,Resources,Support Services,135B,Forbes Solicitors,12/04/2022,RS140801,868.50 ,0.00,Employment Advice - Inv No 591281 - March 2022,Legal Fees
Wyre Council,http://opendatacommunities.org/doc/district-council/wyre,29/04/2022,Resources,Support Services,135B,Forbes Solicitors,12/04/2022,RS140800,480.00 ,0.00,Employment Advice - Invoice No 591381 - March 2022,Legal Fees
Wyre Council,http://opendatacommunities.org/doc/district-council/wyre,29/04/2022,Resources,Support Services,135B,Forbes Solicitors,20/04/2022,RS140970,"8,418.00 ",0.00,Investigation report Invoice No 591317,Legal Fees
Wyre Council,http://opendatacommunities.org/doc/district-council/wyre,29/04/2022,People and Places,Highways,133B,Lancashire County Council,11/04/2022,PE140747,"12,420.00 ",0.00,Carry out maintenance of Wyre Council unadopted lighting 01 April 2021 - 31 March 2022. 414 units @ £30/per annum,Maint. of Unadopted Assets - Engineers
Wyre Council,http://opendatacommunities.org/doc/district-council/wyre,29/04/2022,People and Places,Highways,133B,Fagerhult Lighting Ltd,11/04/2022,PE140749,"3,181.08 ",0.00,Your Quotation SQ109558Provide 4 no ground luminaires ETC130(A6): IP67: LED-12/18W/3K - your ref 185-3686Delivery to   Paul Long   Wyre Council   Civic Centre   Breck Road   Poulton-le-Fylde   FY6 7PU,Maint. of Unadopted Assets - Engineers
Wyre Council,http://opendatacommunities.org/doc/district-council/wyre,29/04/2022,Resources,Parking Services,133F,VODAFONE LIMITED,12/04/2022,RS140490,27.00 ,0.00,Monthly Charges,Maintenance of Tools or Equipment
Wyre Council,http://opendatacommunities.org/doc/district-council/wyre,29/04/2022,People and Places,Support Services,135B,St Gobain Building Distribution LTD,25/04/2022,PE141050,"1,050.31 ",0.00,"Please Supply and deliver direct to Poulton Cemetery Garstang Rd East, Poulton-le-Fylde, FY6 8JH.  Telephone Shaun Hague before arrival on 07791314853.4x2 hardwood cut to the following lengths:6 x 36”6 x 38”6 x 40”Total price £239.30Plyw",Materials and Consumables
Wyre Council,http://opendatacommunities.org/doc/district-council/wyre,29/04/2022,People and Places,Support Services,135B,Key Engineering & Hygiene Supplies LTD,12/04/2022,PE140797,592.25 ,0.00,SUPPLY AND DELIVER THE FOLLOWING GOODS AS PER QUOTATION 13019 2/3/22GOLEL170DDR/07 1 GOLIATH GROUNDMASTERS EL170DDR CHUKKA BOOT SIZE 7 38.29 EACH 38.29GOLEL170DDR/08 1 GOLIATH GROUNDMASTERS EL170DDR CHUKKA BOOT SIZE 8 38.29 EACH 38.29GOLEL170DDR/0,Materials and Consumables
Wyre Council,http://opendatacommunities.org/doc/district-council/wyre,29/04/2022,People and Places,Support Services,135B,Key Engineering & Hygiene Supplies LTD,12/04/2022,PE140797,391.96 ,0.00,safety boots,Materials and Consumables
Wyre Council,http://opendatacommunities.org/doc/district-council/wyre,29/04/2022,People and Places,Environmental Services,132B,Key Engineering & Hygiene Supplies LTD,12/04/2022,PE140797,9.10 ,0.00,"SUPPLY AND DELIVER AS PER QUOTATION 13050 PSFJCBCAGELOW/B/10 1 JCB CAGELOW BLACK SIZE 10 38.14 EACH 38.14 100233B 2 50X36CM OCEAN WIPE - NON ANTI BAC ABBEY BLUE ( PACK OF 50 ) 4.55 EACH 9.10 DELIVERY TO WYRE COUNCIL, COPSE ROAD DEPOT, COPSE ROAD, FLEETWOO",Materials and Consumables
Wyre Council,http://opendatacommunities.org/doc/district-council/wyre,29/04/2022,People and Places,Support Services,135B,MC & MA Stewart (Haulage) LTD,12/04/2022,PE140843,"1,426.00 ",0.00,"Supply and deliver 2 full loads (40m3 each) @ £35.65 per cubic metreTo be delivered to Memorial Park, Fleetwood - 1st week and 2nd week in March.At £1426.00 per load x 2 Total order £2852.00Contact details prior to arrival: Mark Stanley on 07501",Materials and Consumables
Wyre Council,http://opendatacommunities.org/doc/district-council/wyre,29/04/2022,People and Places,Environmental Services,132B,John H Mayor And Sons LTD,19/04/2022,PE140926,"1,034.00 ",0.00,22.00 - 5.2X225x75 U/T @ £47.00 per unit @ £1034.00,Materials and Consumables
Wyre Council,http://opendatacommunities.org/doc/district-council/wyre,29/04/2022,People and Places,Support Services,135B,ENDURA GROUP LTD T/A LANDSCAPE SUPPLY COMPANY,25/04/2022,PE141046,33.53 ,0.00,Silky zubat balde 330mm                               2133       33.53     1              33.53,Materials and Consumables
Wyre Council,http://opendatacommunities.org/doc/district-council/wyre,29/04/2022,Resources,Housing General Fund,134A,Mobility Care Services,27/04/2022,RS141107,66.00 ,0.00,REDACT,Minor Adaptations
Wyre Council,http://opendatacommunities.org/doc/district-council/wyre,29/04/2022,Resources,Housing General Fund,134A,Mobility Care Services,27/04/2022,RS141106,120.00 ,0.00,REDACT,Minor Adaptations
Wyre Council,http://opendatacommunities.org/doc/district-council/wyre,29/04/2022,Resources,Housing General Fund,134A,Mobility Care Services,27/04/2022,RS141111,420.00 ,0.00,REDACT,Minor Adaptations
Wyre Council,http://opendatacommunities.org/doc/district-council/wyre,29/04/2022,Resources,Housing General Fund,134A,Mobility Care Services,27/04/2022,RS141110,132.00 ,0.00,REDACT,Minor Adaptations
Wyre Council,http://opendatacommunities.org/doc/district-council/wyre,29/04/2022,Resources,Housing General Fund,134A,Mobility Care Services,27/04/2022,RS141109,132.00 ,0.00,REDACT,Minor Adaptations
Wyre Council,http://opendatacommunities.org/doc/district-council/wyre,29/04/2022,Resources,Housing General Fund,134A,Mobility Care Services,27/04/2022,RS141108,132.00 ,0.00,REDACT,Minor Adaptations
Wyre Council,http://opendatacommunities.org/doc/district-council/wyre,29/04/2022,Resources,Housing General Fund,134A,Mobility Care Services,27/04/2022,RS141114,66.00 ,0.00,REDACT,Minor Adaptations
Wyre Council,http://opendatacommunities.org/doc/district-council/wyre,29/04/2022,Resources,Housing General Fund,134A,Mobility Care Services,27/04/2022,RS141113,132.00 ,0.00,REDACT,Minor Adaptations
Wyre Council,http://opendatacommunities.org/doc/district-council/wyre,29/04/2022,Resources,Housing General Fund,134A,Mobility Care Services,27/04/2022,RS141112,287.00 ,0.00,REDACT,Minor Adaptations
Wyre Council,http://opendatacommunities.org/doc/district-council/wyre,29/04/2022,Resources,Parking Services,133F,Orange PCS LTD,11/04/2022,RS140472,2.75 ,0.00,Monthly Charges,Mobile Devices
Wyre Council,http://opendatacommunities.org/doc/district-council/wyre,29/04/2022,Resources,Parking Services,133F,Orange PCS LTD,11/04/2022,RS140472,2.75 ,0.00,Monthly Charges,Mobile Devices
Wyre Council,http://opendatacommunities.org/doc/district-council/wyre,29/04/2022,Resources,Support Services,135B,Orange PCS LTD,11/04/2022,RS140472,12.00 ,0.00,Monthly Charges,Mobile Devices
Wyre Council,http://opendatacommunities.org/doc/district-council/wyre,29/04/2022,Resources,Support Services,135B,Orange PCS LTD,11/04/2022,RS140472,2.75 ,0.00,Monthly Charges,Mobile Devices
Wyre Council,http://opendatacommunities.org/doc/district-council/wyre,29/04/2022,Resources,Support Services,135B,Orange PCS LTD,11/04/2022,RS140472,2.75 ,0.00,Monthly Charges,Mobile Devices
Wyre Council,http://opendatacommunities.org/doc/district-council/wyre,29/04/2022,Resources,Support Services,135B,Orange PCS LTD,11/04/2022,RS140471,24.50 ,0.00,Monthly Costs,Mobile Devices
Wyre Council,http://opendatacommunities.org/doc/district-council/wyre,29/04/2022,Resources,Support Services,135B,Orange PCS LTD,11/04/2022,RS140471,19.50 ,0.00,Monthly Costs,Mobile Devices
Wyre Council,http://opendatacommunities.org/doc/district-council/wyre,29/04/2022,Resources,Support Services,135B,Orange PCS LTD,11/04/2022,RS140472,2.75 ,0.00,Monthly Charges,Mobile Devices
Wyre Council,http://opendatacommunities.org/doc/district-council/wyre,29/04/2022,Resources,Support Services,135B,Orange PCS LTD,11/04/2022,RS140472,2.75 ,0.00,Monthly Charges,Mobile Devices
Wyre Council,http://opendatacommunities.org/doc/district-council/wyre,29/04/2022,Resources,Support Services,135B,Orange PCS LTD,11/04/2022,RS140472,2.75 ,0.00,Monthly Charges,Mobile Devices
Wyre Council,http://opendatacommunities.org/doc/district-council/wyre,29/04/2022,Resources,Support Services,135B,Orange PCS LTD,11/04/2022,RS140472,10.00 ,0.00,Monthly Charges,Mobile Devices
Wyre Council,http://opendatacommunities.org/doc/district-council/wyre,29/04/2022,Resources,Support Services,135B,Orange PCS LTD,11/04/2022,RS140471,85.54 ,0.00,Monthly Costs,Mobile Devices
Wyre Council,http://opendatacommunities.org/doc/district-council/wyre,29/04/2022,Resources,Support Services,135B,Orange PCS LTD,11/04/2022,RS140472,30.00 ,0.00,Monthly Charges,Mobile Devices
Wyre Council,http://opendatacommunities.org/doc/district-council/wyre,29/04/2022,Resources,Support Services,135B,Orange PCS LTD,11/04/2022,RS140472,19.50 ,0.00,Monthly Charges,Mobile Devices
Wyre Council,http://opendatacommunities.org/doc/district-council/wyre,29/04/2022,Resources,Support Services,135B,Orange PCS LTD,11/04/2022,RS140472,2.75 ,0.00,Monthly Charges,Mobile Devices
Wyre Council,http://opendatacommunities.org/doc/district-council/wyre,29/04/2022,Resources,Support Services,135B,Orange PCS LTD,11/04/2022,RS140472,-2.67 ,0.00,Monthly Charges,Mobile Devices
Wyre Council,http://opendatacommunities.org/doc/district-council/wyre,29/04/2022,Resources,Support Services,135B,Orange PCS LTD,11/04/2022,RS140472,2.75 ,0.00,Monthly Charges,Mobile Devices
Wyre Council,http://opendatacommunities.org/doc/district-council/wyre,29/04/2022,Resources,Support Services,135B,Orange PCS LTD,11/04/2022,RS140472,2.75 ,0.00,Monthly Charges,Mobile Devices
Wyre Council,http://opendatacommunities.org/doc/district-council/wyre,29/04/2022,Resources,Support Services,135B,Orange PCS LTD,11/04/2022,RS140472,2.75 ,0.00,Monthly Charges,Mobile Devices
Wyre Council,http://opendatacommunities.org/doc/district-council/wyre,29/04/2022,Resources,Support Services,135B,Orange PCS LTD,11/04/2022,RS140472,2.75 ,0.00,Monthly Charges,Mobile Devices
Wyre Council,http://opendatacommunities.org/doc/district-council/wyre,29/04/2022,Resources,Housing General Fund,134A,Orange PCS LTD,11/04/2022,RS140472,2.75 ,0.00,Monthly Charges,Mobile Devices
Wyre Council,http://opendatacommunities.org/doc/district-council/wyre,29/04/2022,Resources,Housing General Fund,134A,Orange PCS LTD,11/04/2022,RS140472,2.75 ,0.00,Monthly Charges,Mobile Devices
Wyre Council,http://opendatacommunities.org/doc/district-council/wyre,29/04/2022,Resources,Housing General Fund,134A,Orange PCS LTD,11/04/2022,RS140472,-2.67 ,0.00,Monthly Charges,Mobile Devices
Wyre Council,http://opendatacommunities.org/doc/district-council/wyre,29/04/2022,Resources,Planning and Development Servs,132C,Orange PCS LTD,11/04/2022,RS140472,2.75 ,0.00,Monthly Charges,Mobile Devices
Wyre Council,http://opendatacommunities.org/doc/district-council/wyre,29/04/2022,Resources,Housing General Fund,134A,Orange PCS LTD,11/04/2022,RS140472,47.33 ,0.00,Monthly Charges,Mobile Devices
Wyre Council,http://opendatacommunities.org/doc/district-council/wyre,29/04/2022,Resources,Housing General Fund,134A,Orange PCS LTD,11/04/2022,RS140472,37.17 ,0.00,Monthly Charges,Mobile Devices
Wyre Council,http://opendatacommunities.org/doc/district-council/wyre,29/04/2022,Resources,Support Services,135B,Orange PCS LTD,11/04/2022,RS140471,2.75 ,0.00,Monthly Costs,Mobile Devices
Wyre Council,http://opendatacommunities.org/doc/district-council/wyre,29/04/2022,Resources,Environmental Services,132B,Orange PCS LTD,11/04/2022,RS140471,24.50 ,0.00,Monthly Costs,Mobile Devices
Wyre Council,http://opendatacommunities.org/doc/district-council/wyre,29/04/2022,Resources,Housing General Fund,134A,Orange PCS LTD,11/04/2022,RS140472,30.00 ,0.00,Monthly Charges,Mobile Devices
Wyre Council,http://opendatacommunities.org/doc/district-council/wyre,29/04/2022,Resources,Housing General Fund,134A,Orange PCS LTD,11/04/2022,RS140472,2.75 ,0.00,Monthly Charges,Mobile Devices
Wyre Council,http://opendatacommunities.org/doc/district-council/wyre,29/04/2022,Resources,Support Services,135B,Orange PCS LTD,11/04/2022,RS140472,18.00 ,0.00,Monthly Charges,Mobile Devices
Wyre Council,http://opendatacommunities.org/doc/district-council/wyre,29/04/2022,Resources,Support Services,135B,Orange PCS LTD,11/04/2022,RS140472,18.00 ,0.00,Monthly Charges,Mobile Devices
Wyre Council,http://opendatacommunities.org/doc/district-council/wyre,29/04/2022,Resources,Support Services,135B,Orange PCS LTD,11/04/2022,RS140472,18.00 ,0.00,Monthly Charges,Mobile Devices
Wyre Council,http://opendatacommunities.org/doc/district-council/wyre,29/04/2022,Resources,Support Services,135B,Orange PCS LTD,11/04/2022,RS140472,10.00 ,0.00,Monthly Charges,Mobile Devices
Wyre Council,http://opendatacommunities.org/doc/district-council/wyre,29/04/2022,Resources,Corporate and Democratic Core,131A,Orange PCS LTD,11/04/2022,RS140472,19.50 ,0.00,Monthly Charges,Mobile Devices
Wyre Council,http://opendatacommunities.org/doc/district-council/wyre,29/04/2022,Resources,Corporate and Democratic Core,131A,Orange PCS LTD,11/04/2022,RS140472,19.50 ,0.00,Monthly Charges,Mobile Devices
Wyre Council,http://opendatacommunities.org/doc/district-council/wyre,29/04/2022,Resources,Corporate and Democratic Core,131A,Orange PCS LTD,11/04/2022,RS140472,19.50 ,0.00,Monthly Charges,Mobile Devices
Wyre Council,http://opendatacommunities.org/doc/district-council/wyre,29/04/2022,Resources,Corporate and Democratic Core,131A,Orange PCS LTD,11/04/2022,RS140472,19.50 ,0.00,Monthly Charges,Mobile Devices
Wyre Council,http://opendatacommunities.org/doc/district-council/wyre,29/04/2022,Resources,Corporate and Democratic Core,131A,Orange PCS LTD,11/04/2022,RS140472,19.50 ,0.00,Monthly Charges,Mobile Devices
Wyre Council,http://opendatacommunities.org/doc/district-council/wyre,29/04/2022,Resources,Corporate and Democratic Core,131A,Orange PCS LTD,11/04/2022,RS140472,19.50 ,0.00,Monthly Charges,Mobile Devices
Wyre Council,http://opendatacommunities.org/doc/district-council/wyre,29/04/2022,Resources,Corporate and Democratic Core,131A,Orange PCS LTD,11/04/2022,RS140472,19.50 ,0.00,Monthly Charges,Mobile Devices
Wyre Council,http://opendatacommunities.org/doc/district-council/wyre,29/04/2022,Resources,Corporate and Democratic Core,131A,Orange PCS LTD,11/04/2022,RS140472,2.75 ,0.00,Monthly Charges,Mobile Devices
Wyre Council,http://opendatacommunities.org/doc/district-council/wyre,29/04/2022,Resources,Support Services,135B,Orange PCS LTD,11/04/2022,RS140472,2.75 ,0.00,Monthly Charges,Mobile Devices
Wyre Council,http://opendatacommunities.org/doc/district-council/wyre,29/04/2022,Resources,Support Services,135B,Orange PCS LTD,11/04/2022,RS140472,2.75 ,0.00,Monthly Charges,Mobile Devices
Wyre Council,http://opendatacommunities.org/doc/district-council/wyre,29/04/2022,Resources,Support Services,135B,Orange PCS LTD,11/04/2022,RS140472,2.75 ,0.00,Monthly Charges,Mobile Devices
Wyre Council,http://opendatacommunities.org/doc/district-council/wyre,29/04/2022,Resources,Support Services,135B,Orange PCS LTD,11/04/2022,RS140472,2.75 ,0.00,Monthly Charges,Mobile Devices
Wyre Council,http://opendatacommunities.org/doc/district-council/wyre,29/04/2022,Resources,Environmental Services,132B,Orange PCS LTD,11/04/2022,RS140472,2.75 ,0.00,Monthly Charges,Mobile Devices
Wyre Council,http://opendatacommunities.org/doc/district-council/wyre,29/04/2022,Resources,Environmental Services,132B,Orange PCS LTD,11/04/2022,RS140472,2.75 ,0.00,Monthly Charges,Mobile Devices
Wyre Council,http://opendatacommunities.org/doc/district-council/wyre,29/04/2022,Resources,Environmental Services,132B,Orange PCS LTD,11/04/2022,RS140472,2.75 ,0.00,Monthly Charges,Mobile Devices
Wyre Council,http://opendatacommunities.org/doc/district-council/wyre,29/04/2022,Resources,Environmental Services,132B,Orange PCS LTD,11/04/2022,RS140472,2.75 ,0.00,Monthly Charges,Mobile Devices
Wyre Council,http://opendatacommunities.org/doc/district-council/wyre,29/04/2022,Resources,Environmental Services,132B,Orange PCS LTD,11/04/2022,RS140472,-0.46 ,0.00,Monthly Charges,Mobile Devices
Wyre Council,http://opendatacommunities.org/doc/district-council/wyre,29/04/2022,Resources,Central Services to the Public,131C,Orange PCS LTD,11/04/2022,RS140472,-0.46 ,0.00,Monthly Charges,Mobile Devices
Wyre Council,http://opendatacommunities.org/doc/district-council/wyre,29/04/2022,Resources,Central Services to the Public,131C,Orange PCS LTD,11/04/2022,RS140471,16.00 ,0.00,Monthly Costs,Mobile Devices
Wyre Council,http://opendatacommunities.org/doc/district-council/wyre,29/04/2022,Resources,Central Services to the Public,131C,Orange PCS LTD,11/04/2022,RS140471,-2.67 ,0.00,Monthly Costs,Mobile Devices
Wyre Council,http://opendatacommunities.org/doc/district-council/wyre,29/04/2022,Resources,Support Services,135B,Orange PCS LTD,11/04/2022,RS140471,19.50 ,0.00,Monthly Costs,Mobile Devices
Wyre Council,http://opendatacommunities.org/doc/district-council/wyre,29/04/2022,Resources,Support Services,135B,Orange PCS LTD,11/04/2022,RS140471,19.50 ,0.00,Monthly Costs,Mobile Devices
Wyre Council,http://opendatacommunities.org/doc/district-council/wyre,29/04/2022,Resources,Support Services,135B,Orange PCS LTD,11/04/2022,RS140472,2.75 ,0.00,Monthly Charges,Mobile Devices
Wyre Council,http://opendatacommunities.org/doc/district-council/wyre,29/04/2022,Resources,Support Services,135B,Orange PCS LTD,11/04/2022,RS140472,2.75 ,0.00,Monthly Charges,Mobile Devices
Wyre Council,http://opendatacommunities.org/doc/district-council/wyre,29/04/2022,Resources,Support Services,135B,Orange PCS LTD,11/04/2022,RS140472,2.75 ,0.00,Monthly Charges,Mobile Devices
Wyre Council,http://opendatacommunities.org/doc/district-council/wyre,29/04/2022,Resources,Support Services,135B,Orange PCS LTD,11/04/2022,RS140472,20.00 ,0.00,Monthly Charges,Mobile Devices
Wyre Council,http://opendatacommunities.org/doc/district-council/wyre,29/04/2022,Resources,Support Services,135B,Orange PCS LTD,11/04/2022,RS140472,19.50 ,0.00,Monthly Charges,Mobile Devices
Wyre Council,http://opendatacommunities.org/doc/district-council/wyre,29/04/2022,Resources,Support Services,135B,Orange PCS LTD,11/04/2022,RS140472,18.00 ,0.00,Monthly Charges,Mobile Devices
Wyre Council,http://opendatacommunities.org/doc/district-council/wyre,29/04/2022,Resources,Support Services,135B,Orange PCS LTD,11/04/2022,RS140472,16.00 ,0.00,Monthly Charges,Mobile Devices
Wyre Council,http://opendatacommunities.org/doc/district-council/wyre,29/04/2022,Resources,Support Services,135B,Orange PCS LTD,11/04/2022,RS140472,2.75 ,0.00,Monthly Charges,Mobile Devices
Wyre Council,http://opendatacommunities.org/doc/district-council/wyre,29/04/2022,Resources,Support Services,135B,Orange PCS LTD,11/04/2022,RS140472,2.75 ,0.00,Monthly Charges,Mobile Devices
Wyre Council,http://opendatacommunities.org/doc/district-council/wyre,29/04/2022,Resources,Support Services,135B,Orange PCS LTD,11/04/2022,RS140472,2.75 ,0.00,Monthly Charges,Mobile Devices
Wyre Council,http://opendatacommunities.org/doc/district-council/wyre,29/04/2022,Resources,Cultural and Related Services,132A,Orange PCS LTD,11/04/2022,RS140472,30.00 ,0.00,Monthly Charges,Mobile Devices
Wyre Council,http://opendatacommunities.org/doc/district-council/wyre,29/04/2022,Resources,Support Services,135B,Orange PCS LTD,11/04/2022,RS140472,2.75 ,0.00,Monthly Charges,Mobile Devices
Wyre Council,http://opendatacommunities.org/doc/district-council/wyre,29/04/2022,Resources,Support Services,135B,Orange PCS LTD,11/04/2022,RS140472,2.75 ,0.00,Monthly Charges,Mobile Devices
Wyre Council,http://opendatacommunities.org/doc/district-council/wyre,29/04/2022,Resources,Support Services,135B,Orange PCS LTD,11/04/2022,RS140472,2.75 ,0.00,Monthly Charges,Mobile Devices
Wyre Council,http://opendatacommunities.org/doc/district-council/wyre,29/04/2022,Resources,Support Services,135B,Orange PCS LTD,11/04/2022,RS140472,2.75 ,0.00,Monthly Charges,Mobile Devices
Wyre Council,http://opendatacommunities.org/doc/district-council/wyre,29/04/2022,Resources,Support Services,135B,Orange PCS LTD,11/04/2022,RS140472,2.75 ,0.00,Monthly Charges,Mobile Devices
Wyre Council,http://opendatacommunities.org/doc/district-council/wyre,29/04/2022,Resources,Support Services,135B,Orange PCS LTD,11/04/2022,RS140472,2.75 ,0.00,Monthly Charges,Mobile Devices
Wyre Council,http://opendatacommunities.org/doc/district-council/wyre,29/04/2022,Resources,Support Services,135B,Orange PCS LTD,11/04/2022,RS140472,16.00 ,0.00,Monthly Charges,Mobile Devices
Wyre Council,http://opendatacommunities.org/doc/district-council/wyre,29/04/2022,Resources,Support Services,135B,Orange PCS LTD,11/04/2022,RS140472,3.00 ,0.00,Monthly Charges,Mobile Devices
Wyre Council,http://opendatacommunities.org/doc/district-council/wyre,29/04/2022,Resources,Support Services,135B,Orange PCS LTD,11/04/2022,RS140472,2.75 ,0.00,Monthly Charges,Mobile Devices
Wyre Council,http://opendatacommunities.org/doc/district-council/wyre,29/04/2022,Resources,Support Services,135B,Orange PCS LTD,11/04/2022,RS140472,2.75 ,0.00,Monthly Charges,Mobile Devices
Wyre Council,http://opendatacommunities.org/doc/district-council/wyre,29/04/2022,Resources,Support Services,135B,Orange PCS LTD,11/04/2022,RS140472,-0.28 ,0.00,Monthly Charges,Mobile Devices
Wyre Council,http://opendatacommunities.org/doc/district-council/wyre,29/04/2022,Resources,Support Services,135B,Orange PCS LTD,11/04/2022,RS140471,55.26 ,0.00,Monthly Costs,Mobile Devices
Wyre Council,http://opendatacommunities.org/doc/district-council/wyre,29/04/2022,Resources,Support Services,135B,Orange PCS LTD,11/04/2022,RS140471,24.50 ,0.00,Monthly Costs,Mobile Devices
Wyre Council,http://opendatacommunities.org/doc/district-council/wyre,29/04/2022,Resources,Support Services,135B,Orange PCS LTD,11/04/2022,RS140472,2.75 ,0.00,Monthly Charges,Mobile Devices
Wyre Council,http://opendatacommunities.org/doc/district-council/wyre,29/04/2022,Resources,Support Services,135B,Orange PCS LTD,11/04/2022,RS140472,2.75 ,0.00,Monthly Charges,Mobile Devices
Wyre Council,http://opendatacommunities.org/doc/district-council/wyre,29/04/2022,Resources,Support Services,135B,Orange PCS LTD,11/04/2022,RS140472,2.75 ,0.00,Monthly Charges,Mobile Devices
Wyre Council,http://opendatacommunities.org/doc/district-council/wyre,29/04/2022,Resources,Support Services,135B,Orange PCS LTD,11/04/2022,RS140472,2.75 ,0.00,Monthly Charges,Mobile Devices
Wyre Council,http://opendatacommunities.org/doc/district-council/wyre,29/04/2022,Resources,Support Services,135B,Orange PCS LTD,11/04/2022,RS140472,2.75 ,0.00,Monthly Charges,Mobile Devices
Wyre Council,http://opendatacommunities.org/doc/district-council/wyre,29/04/2022,Resources,Support Services,135B,Orange PCS LTD,11/04/2022,RS140472,2.75 ,0.00,Monthly Charges,Mobile Devices
Wyre Council,http://opendatacommunities.org/doc/district-council/wyre,29/04/2022,Resources,Support Services,135B,Orange PCS LTD,11/04/2022,RS140472,2.75 ,0.00,Monthly Charges,Mobile Devices
Wyre Council,http://opendatacommunities.org/doc/district-council/wyre,29/04/2022,Resources,Support Services,135B,Orange PCS LTD,11/04/2022,RS140472,2.75 ,0.00,Monthly Charges,Mobile Devices
Wyre Council,http://opendatacommunities.org/doc/district-council/wyre,29/04/2022,Resources,Support Services,135B,Orange PCS LTD,11/04/2022,RS140472,2.75 ,0.00,Monthly Charges,Mobile Devices
Wyre Council,http://opendatacommunities.org/doc/district-council/wyre,29/04/2022,Resources,Support Services,135B,Orange PCS LTD,11/04/2022,RS140472,2.75 ,0.00,Monthly Charges,Mobile Devices
Wyre Council,http://opendatacommunities.org/doc/district-council/wyre,29/04/2022,Resources,Support Services,135B,Orange PCS LTD,11/04/2022,RS140472,2.75 ,0.00,Monthly Charges,Mobile Devices
Wyre Council,http://opendatacommunities.org/doc/district-council/wyre,29/04/2022,Resources,Support Services,135B,Orange PCS LTD,11/04/2022,RS140471,69.50 ,0.00,Monthly Costs,Mobile Devices
Wyre Council,http://opendatacommunities.org/doc/district-council/wyre,29/04/2022,Resources,Support Services,135B,Orange PCS LTD,11/04/2022,RS140471,36.93 ,0.00,Monthly Costs,Mobile Devices
Wyre Council,http://opendatacommunities.org/doc/district-council/wyre,29/04/2022,Resources,Support Services,135B,Orange PCS LTD,11/04/2022,RS140471,19.50 ,0.00,Monthly Costs,Mobile Devices
Wyre Council,http://opendatacommunities.org/doc/district-council/wyre,29/04/2022,Resources,Support Services,135B,Orange PCS LTD,11/04/2022,RS140472,24.50 ,0.00,Monthly Charges,Mobile Devices
Wyre Council,http://opendatacommunities.org/doc/district-council/wyre,29/04/2022,Resources,Support Services,135B,Orange PCS LTD,11/04/2022,RS140472,19.50 ,0.00,Monthly Charges,Mobile Devices
Wyre Council,http://opendatacommunities.org/doc/district-council/wyre,29/04/2022,Resources,Support Services,135B,Orange PCS LTD,11/04/2022,RS140472,16.00 ,0.00,Monthly Charges,Mobile Devices
Wyre Council,http://opendatacommunities.org/doc/district-council/wyre,29/04/2022,Resources,Support Services,135B,Orange PCS LTD,11/04/2022,RS140472,2.75 ,0.00,Monthly Charges,Mobile Devices
Wyre Council,http://opendatacommunities.org/doc/district-council/wyre,29/04/2022,Resources,Support Services,135B,Orange PCS LTD,11/04/2022,RS140472,-0.46 ,0.00,Monthly Charges,Mobile Devices
Wyre Council,http://opendatacommunities.org/doc/district-council/wyre,29/04/2022,Resources,Support Services,135B,Orange PCS LTD,11/04/2022,RS140472,12.00 ,0.00,Monthly Charges,Mobile Devices
Wyre Council,http://opendatacommunities.org/doc/district-council/wyre,29/04/2022,Resources,Corporate and Democratic Core,131A,Orange PCS LTD,11/04/2022,RS140472,19.50 ,0.00,Monthly Charges,Mobile Devices
Wyre Council,http://opendatacommunities.org/doc/district-council/wyre,29/04/2022,Resources,Central Services to the Public,131C,Orange PCS LTD,11/04/2022,RS140472,-5.58 ,0.00,Monthly Charges,Mobile Devices
Wyre Council,http://opendatacommunities.org/doc/district-council/wyre,29/04/2022,Resources,Support Services,135B,VODAFONE LIMITED,12/04/2022,RS140490,189.00 ,0.00,Monthly Charges,Mobile Devices
Wyre Council,http://opendatacommunities.org/doc/district-council/wyre,29/04/2022,Resources,Support Services,135B,VODAFONE LIMITED,12/04/2022,RS140490,12.00 ,0.00,Monthly Charges,Mobile Devices
Wyre Council,http://opendatacommunities.org/doc/district-council/wyre,29/04/2022,Resources,Central Services to the Public,131C,VODAFONE LIMITED,12/04/2022,RS140490,12.00 ,0.00,Monthly Charges,Mobile Devices
Wyre Council,http://opendatacommunities.org/doc/district-council/wyre,29/04/2022,Resources,Support Services,135B,VODAFONE LIMITED,12/04/2022,RS140490,114.00 ,0.00,Monthly Charges,Mobile Devices
Wyre Council,http://opendatacommunities.org/doc/district-council/wyre,29/04/2022,Resources,Support Services,135B,VODAFONE LIMITED,12/04/2022,RS140490,57.00 ,0.00,Monthly Charges,Mobile Devices
Wyre Council,http://opendatacommunities.org/doc/district-council/wyre,29/04/2022,Resources,Support Services,135B,VODAFONE LIMITED,12/04/2022,RS140490,49.00 ,0.00,Monthly Charges,Mobile Devices
Wyre Council,http://opendatacommunities.org/doc/district-council/wyre,29/04/2022,Resources,Support Services,135B,VODAFONE LIMITED,12/04/2022,RS140490,12.00 ,0.00,Monthly Charges,Mobile Devices
Wyre Council,http://opendatacommunities.org/doc/district-council/wyre,29/04/2022,Resources,Cultural and Related Services,132A,VODAFONE LIMITED,12/04/2022,RS140490,33.00 ,0.00,Monthly Charges,Mobile Devices
Wyre Council,http://opendatacommunities.org/doc/district-council/wyre,29/04/2022,Resources,Corporate and Democratic Core,131A,VODAFONE LIMITED,12/04/2022,RS140490,12.00 ,0.00,Monthly Charges,Mobile Devices
Wyre Council,http://opendatacommunities.org/doc/district-council/wyre,29/04/2022,Resources,Support Services,135B,VODAFONE LIMITED,12/04/2022,RS140490,24.00 ,0.00,Monthly Charges,Mobile Devices
Wyre Council,http://opendatacommunities.org/doc/district-council/wyre,29/04/2022,Resources,Support Services,135B,VODAFONE LIMITED,12/04/2022,RS140490,205.00 ,0.00,Monthly Charges,Mobile Devices
Wyre Council,http://opendatacommunities.org/doc/district-council/wyre,29/04/2022,Resources,Environmental Services,132B,VODAFONE LIMITED,12/04/2022,RS140490,37.00 ,0.00,Monthly Charges,Mobile Devices
Wyre Council,http://opendatacommunities.org/doc/district-council/wyre,29/04/2022,Resources,Housing General Fund,134A,VODAFONE LIMITED,12/04/2022,RS140490,4.00 ,0.00,Monthly Charges,Mobile Devices
Wyre Council,http://opendatacommunities.org/doc/district-council/wyre,29/04/2022,Resources,Housing General Fund,134A,VODAFONE LIMITED,12/04/2022,RS140490,34.44 ,0.00,Monthly Charges,Mobile Devices
Wyre Council,http://opendatacommunities.org/doc/district-council/wyre,29/04/2022,Resources,Cultural and Related Services,132A,VODAFONE LIMITED,12/04/2022,RS140490,4.00 ,0.00,Monthly Charges,Mobile Devices
Wyre Council,http://opendatacommunities.org/doc/district-council/wyre,29/04/2022,Resources,Support Services,135B,VODAFONE LIMITED,12/04/2022,RS140490,141.00 ,0.00,Monthly Charges,Mobile Devices
Wyre Council,http://opendatacommunities.org/doc/district-council/wyre,29/04/2022,Resources,Support Services,135B,VODAFONE LIMITED,12/04/2022,RS140490,8.00 ,0.00,Monthly Charges,Mobile Devices
Wyre Council,http://opendatacommunities.org/doc/district-council/wyre,29/04/2022,Resources,Support Services,135B,VODAFONE LIMITED,12/04/2022,RS140490,136.00 ,0.00,Monthly Charges,Mobile Devices
Wyre Council,http://opendatacommunities.org/doc/district-council/wyre,29/04/2022,Resources,Support Services,135B,VODAFONE LIMITED,12/04/2022,RS140490,155.64 ,0.00,Monthly Charges,Mobile Devices
Wyre Council,http://opendatacommunities.org/doc/district-council/wyre,29/04/2022,Resources,Environmental Services,132B,VODAFONE LIMITED,12/04/2022,RS140490,117.00 ,0.00,Monthly Charges,Mobile Devices
Wyre Council,http://opendatacommunities.org/doc/district-council/wyre,29/04/2022,Resources,Support Services,135B,VODAFONE LIMITED,12/04/2022,RS140490,16.00 ,0.00,Monthly Charges,Mobile Devices
Wyre Council,http://opendatacommunities.org/doc/district-council/wyre,29/04/2022,Resources,Central Services to the Public,131C,VODAFONE LIMITED,12/04/2022,RS140490,12.00 ,0.00,Monthly Charges,Mobile Devices
Wyre Council,http://opendatacommunities.org/doc/district-council/wyre,29/04/2022,Resources,Support Services,135B,VODAFONE LIMITED,12/04/2022,RS140490,12.00 ,0.00,Monthly Charges,Mobile Devices
Wyre Council,http://opendatacommunities.org/doc/district-council/wyre,29/04/2022,Resources,Support Services,135B,VODAFONE LIMITED,12/04/2022,RS140490,294.66 ,0.00,Monthly Charges,Mobile Devices
Wyre Council,http://opendatacommunities.org/doc/district-council/wyre,29/04/2022,Resources,Support Services,135B,VODAFONE LIMITED,12/04/2022,RS140490,12.00 ,0.00,Monthly Charges,Mobile Devices
Wyre Council,http://opendatacommunities.org/doc/district-council/wyre,29/04/2022,Resources,Support Services,135B,VODAFONE LIMITED,12/04/2022,RS140490,40.41 ,0.00,Monthly Charges,Mobile Devices
Wyre Council,http://opendatacommunities.org/doc/district-council/wyre,29/04/2022,Resources,Support Services,135B,VODAFONE LIMITED,12/04/2022,RS140490,12.00 ,0.00,Monthly Charges,Mobile Devices
Wyre Council,http://opendatacommunities.org/doc/district-council/wyre,29/04/2022,Resources,Support Services,135B,VODAFONE LIMITED,12/04/2022,RS140490,49.00 ,0.00,Monthly Charges,Mobile Devices
Wyre Council,http://opendatacommunities.org/doc/district-council/wyre,29/04/2022,Resources,Support Services,135B,VODAFONE LIMITED,12/04/2022,RS140490,12.00 ,0.00,Monthly Charges,Mobile Devices
Wyre Council,http://opendatacommunities.org/doc/district-council/wyre,29/04/2022,Resources,Cultural and Related Services,132A,VODAFONE LIMITED,12/04/2022,RS140490,33.00 ,0.00,Monthly Charges,Mobile Devices
Wyre Council,http://opendatacommunities.org/doc/district-council/wyre,29/04/2022,Resources,Support Services,135B,VODAFONE LIMITED,12/04/2022,RS140490,12.00 ,0.00,Monthly Charges,Mobile Devices
Wyre Council,http://opendatacommunities.org/doc/district-council/wyre,29/04/2022,Resources,General Fund below the line,136A,Ribble Valley Borough Council,12/04/2022,RS140803,"89,305.00 ",0.00,"Business rates pool, 10% retained levy due to Lancashire County Council for 20/21",NNDR Levy to Government
Wyre Council,http://opendatacommunities.org/doc/district-council/wyre,29/04/2022,Finance,Current Assets,130B,,26/04/2022,WPST00046139,"1,516.69 ",0.00,,NNDR Refunds
Wyre Council,http://opendatacommunities.org/doc/district-council/wyre,29/04/2022,Resources,Support Services,135B,Karen Openshaw Consultancy,20/04/2022,RS140974,695.00 ,0.00,To provision of Listening Ear and Mindfulness sessions 1 Apr 2022 - 31 March 2023,Occupational Health Fees
Wyre Council,http://opendatacommunities.org/doc/district-council/wyre,29/04/2022,Resources,General Fund below the line,136A,Catterall Parish Council,01/04/2022,RS140690,"91,000.00 ",0.00,Catterall Parish Precept 22/23,Other Contributions
Wyre Council,http://opendatacommunities.org/doc/district-council/wyre,29/04/2022,Resources,General Fund below the line,136A,Hambleton Parish Council,01/04/2022,RS140691,"40,000.00 ",0.00,Hambleton Parish Precept 22/23,Other Contributions
Wyre Council,http://opendatacommunities.org/doc/district-council/wyre,29/04/2022,Resources,General Fund below the line,136A,Preesall Town Council,01/04/2022,RS140692,"99,416.00 ",0.00,Preesall Town Precept 22/23,Other Contributions
Wyre Council,http://opendatacommunities.org/doc/district-council/wyre,29/04/2022,Resources,General Fund below the line,136A,Cabus Parish Council,01/04/2022,RS140693,"9,000.00 ",0.00,Cabus Parish Precept 22/23,Other Contributions
Wyre Council,http://opendatacommunities.org/doc/district-council/wyre,29/04/2022,Resources,General Fund below the line,136A,Great Eccleston Parish Council,01/04/2022,RS140694,"34,000.00 ",0.00,Gt Eccleston Parish Precept 22/23,Other Contributions
Wyre Council,http://opendatacommunities.org/doc/district-council/wyre,29/04/2022,Resources,General Fund below the line,136A,Forton Parish Council,01/04/2022,RS140695,"21,000.00 ",0.00,Forton Parish Precept 22/23,Other Contributions
Wyre Council,http://opendatacommunities.org/doc/district-council/wyre,29/04/2022,Resources,General Fund below the line,136A,Inskip with Sowerby Parish Council,01/04/2022,RS140696,"10,817.86 ",0.00,Inskip Parish Precept 22/23,Other Contributions
Wyre Council,http://opendatacommunities.org/doc/district-council/wyre,29/04/2022,Resources,General Fund below the line,136A,Bleasdale Parish Council,01/04/2022,RS140697,900.00 ,0.00,Bleasdale Parish Precept 2022/23,Other Contributions
Wyre Council,http://opendatacommunities.org/doc/district-council/wyre,29/04/2022,Resources,General Fund below the line,136A,Pilling Parish Council,01/04/2022,RS140699,"76,000.00 ",0.00,Pilling Precept 22/23,Other Contributions
Wyre Council,http://opendatacommunities.org/doc/district-council/wyre,29/04/2022,Resources,General Fund below the line,136A,Stalmine With Staynall Parish Council,01/04/2022,RS140698,"37,769.00 ",0.00,Stalmine Parish Precept 22/23,Other Contributions
Wyre Council,http://opendatacommunities.org/doc/district-council/wyre,29/04/2022,Resources,General Fund below the line,136A,Barnacre With Bonds Parish Council,01/04/2022,RS140700,"7,500.00 ",0.00,Barnacre Parish Precept 2022/23,Other Contributions
Wyre Council,http://opendatacommunities.org/doc/district-council/wyre,29/04/2022,Resources,General Fund below the line,136A,Garstang Town Council,01/04/2022,RS140701,"97,033.00 ",0.00,Garstang Town Precept 22/23,Other Contributions
Wyre Council,http://opendatacommunities.org/doc/district-council/wyre,29/04/2022,Resources,General Fund below the line,136A,c. Kirkland Parish Council,01/04/2022,RS140702,"11,500.00 ",0.00,Kirkland Parish Precept 22/23,Other Contributions
Wyre Council,http://opendatacommunities.org/doc/district-council/wyre,29/04/2022,Resources,General Fund below the line,136A,Upper Rawcliffe-With-Tarnacre Parish Council,01/04/2022,RS140703,"7,500.00 ",0.00,U Rawcliffe Parish Precept 22/23,Other Contributions
Wyre Council,http://opendatacommunities.org/doc/district-council/wyre,29/04/2022,Resources,General Fund below the line,136A,Winmarleigh Parish Council,01/04/2022,RS140704,"3,700.00 ",0.00,Winmarleigh Parish Precept 22/23,Other Contributions
Wyre Council,http://opendatacommunities.org/doc/district-council/wyre,29/04/2022,Resources,General Fund below the line,136A,Out Rawcliffe Parish Council,01/04/2022,RS140705,"7,000.00 ",0.00,Out Rawcliffe Parish Precept 22/23,Other Contributions
Wyre Council,http://opendatacommunities.org/doc/district-council/wyre,29/04/2022,Resources,General Fund below the line,136A,Nateby Parish Council,01/04/2022,RS140706,"4,145.00 ",0.00,Nateby Parish Precept 22/23,Other Contributions
Wyre Council,http://opendatacommunities.org/doc/district-council/wyre,29/04/2022,Resources,General Fund below the line,136A,Myerscough & Bilsborrow Parish Council,01/04/2022,RS140707,"17,500.00 ",0.00,Myerscough Parish Precept 22/23,Other Contributions
Wyre Council,http://opendatacommunities.org/doc/district-council/wyre,29/04/2022,Resources,General Fund below the line,136A,Claughton-On-Brock Parish Council,01/04/2022,RS140708,"20,000.00 ",0.00,Claughton Parish Precept 22/23,Other Contributions
Wyre Council,http://opendatacommunities.org/doc/district-council/wyre,29/04/2022,Resources,General Fund below the line,136A,Nether Wyresdale Parish Council,01/04/2022,RS140709,"20,375.05 ",0.00,Nether W Parish Precept 22/23,Other Contributions
Wyre Council,http://opendatacommunities.org/doc/district-council/wyre,29/04/2022,Resources,General Fund below the line,136A,Fleetwood Town Council,01/04/2022,RS140710,"248,015.00 ",0.00,Fleetwood Town Precept 22/23,Other Contributions
Wyre Council,http://opendatacommunities.org/doc/district-council/wyre,29/04/2022,Resources,Central Services to the Public,131C,Ribble Valley Borough Council,12/04/2022,RS140803,"1,818.18 ",0.00,Annual charge from the lead authority for the administration of the Lancashire Business Rates Pool 2021/22,Other Local Authorities
Wyre Council,http://opendatacommunities.org/doc/district-council/wyre,29/04/2022,People and Places,Environmental Services,132B,D Hollowell & Sons LTD,13/04/2022,PE139970,814.00 ,0.00,REDACT,Other Rechargeable Services
Wyre Council,http://opendatacommunities.org/doc/district-council/wyre,29/04/2022,People and Places,Support Services,135B,Allstar Business Solutions LTD,25/04/2022,PE140950,86.85 ,0.00,Fuel Charges,Petrol
Wyre Council,http://opendatacommunities.org/doc/district-council/wyre,29/04/2022,People and Places,Support Services,135B,Allstar Business Solutions LTD,25/04/2022,PE140950,56.54 ,0.00,Fuel Charges,Petrol
Wyre Council,http://opendatacommunities.org/doc/district-council/wyre,29/04/2022,People and Places,Support Services,135B,Allstar Business Solutions LTD,25/04/2022,PE140950,114.02 ,0.00,Fuel Charges,Petrol
Wyre Council,http://opendatacommunities.org/doc/district-council/wyre,29/04/2022,People and Places,Support Services,135B,Allstar Business Solutions LTD,25/04/2022,PE140950,121.29 ,0.00,Fuel Charges,Petrol
Wyre Council,http://opendatacommunities.org/doc/district-council/wyre,29/04/2022,Finance,Central Services to the Public,131C,SANTANDER,08/04/2022,WPST00044455,698.32 ,0.00,,Plastic Cards Processing Fees
Wyre Council,http://opendatacommunities.org/doc/district-council/wyre,29/04/2022,People and Places,Cultural and Related Services,132A,Melrose Investment LTD,13/04/2022,PE140169,"1,428.25 ",0.00,Marsh Mill Rent/Service Charge for the period 01/04/22-30/06/22,Private Contractors
Wyre Council,http://opendatacommunities.org/doc/district-council/wyre,29/04/2022,People and Places,Public Transport,133G,Wyre Marine Services,11/04/2022,PE140728,"7,017.01 ",0.00,"Fleetwood Fleetwood - Knott End Ferry Service 2021-22Schedule of payments.12 April - 11 May   - £7,017.0912 May - 11 June  - £7,017.0912 June - 11 July   - £7,017.0912 July - 11 Aug     - £7,017.0912 Aug - 11 Sept    - £7,017.0812 Sept - 1",Private Contractors
Wyre Council,http://opendatacommunities.org/doc/district-council/wyre,29/04/2022,Finance,Planning and Development Servs,132C,,08/04/2022,WPST00044445,949.20 ,0.00,06/04/2022BAUER RADIO LTDROCK FM,Promotions - General
Wyre Council,http://opendatacommunities.org/doc/district-council/wyre,29/04/2022,Resources,Cultural and Related Services,132A,Preston City Council,12/04/2022,RS140851,66.44 ,0.00,1000 x Social Cycling 2022 A5 1pp (£45)20 x A4 Social Cycling 2022 A4 1pp (£1.50)4 x Social Cycling 2022 A1 1pp (£27.34)FAO SIMON SWINDELLS/CAROL SOUTHERN,Promotions - General
Wyre Council,http://opendatacommunities.org/doc/district-council/wyre,29/04/2022,People and Places,Planning and Development Servs,132C,Preston City Council,19/04/2022,PE140949,118.71 ,0.00,"Dino A1, A2, A3 Posters",Promotions - General
Wyre Council,http://opendatacommunities.org/doc/district-council/wyre,29/04/2022,People and Places,Planning and Development Servs,132C,Preston City Council,19/04/2022,PE140948,54.68 ,0.00,Market A0,Promotions - General
Wyre Council,http://opendatacommunities.org/doc/district-council/wyre,29/04/2022,People and Places,Planning and Development Servs,132C,Preston City Council,19/04/2022,PE140947,54.68 ,0.00,Dino A0 Display Posters,Promotions - General
Wyre Council,http://opendatacommunities.org/doc/district-council/wyre,29/04/2022,People and Places,Planning and Development Servs,132C,Preston City Council,19/04/2022,PE140946,59.52 ,0.00,Dino Bus Stops Posters,Promotions - General
Wyre Council,http://opendatacommunities.org/doc/district-council/wyre,29/04/2022,People and Places,Planning and Development Servs,132C,Yandell Publishing LTD,29/04/2022,PE140975,510.00 ,0.00,Half Page Group Travel and Leisure Advert for Fleetwood Market,Promotions - General
Wyre Council,http://opendatacommunities.org/doc/district-council/wyre,29/04/2022,Resources,Planning and Development Servs,132C,BIG FOOT EVENTS,26/04/2022,RS141094,"2,621.25 ",0.00,"Dinosaur hire, fleetwood market, Saturday 16 April",Promotions - General
Wyre Council,http://opendatacommunities.org/doc/district-council/wyre,29/04/2022,Resources,Planning and Development Servs,132C,Visual Print and Design Ltd,20/04/2022,RS140983,180.00 ,0.00,HAZ banners for custom house lane,Promotions - General
Wyre Council,http://opendatacommunities.org/doc/district-council/wyre,29/04/2022,People and Places,Planning and Development Servs,132C,Visual Print and Design Ltd,13/04/2022,PE140504,"6,590.00 ",0.00,350k Fleetwood Market leaflet Print,Promotions - General
Wyre Council,http://opendatacommunities.org/doc/district-council/wyre,29/04/2022,People and Places,Support Services,135B,Key Engineering & Hygiene Supplies LTD,12/04/2022,PE140797,50.67 ,0.00,URGENT PLEASE SUPPLY AND DELIVER AS PER QUOTATION 12788 16/2/22  RX101FBLKS 1 PRO RTX LADIES PRO POLO BLACK S 4.28 EACH 4.28 201BKXS 1 UC201 BLACK XS 350GSM PREMIUM SWEATSHIRT 8.44 EACH 8.44 C099BKRS 1 LADIES COMBAT TROUSER SIZE SML REG BLACK 13.72 EACH 1,Protective Clothing
Wyre Council,http://opendatacommunities.org/doc/district-council/wyre,29/04/2022,People and Places,Cultural and Related Services,132A,Key Engineering & Hygiene Supplies LTD,12/04/2022,PE140798,614.29 ,0.00,10 x hi viz jackets 3 in 1,Protective Clothing
Wyre Council,http://opendatacommunities.org/doc/district-council/wyre,29/04/2022,People and Places,Cultural and Related Services,132A,Key Engineering & Hygiene Supplies LTD,12/04/2022,PE140798,540.26 ,0.00,various uniform for new starter,Protective Clothing
Wyre Council,http://opendatacommunities.org/doc/district-council/wyre,29/04/2022,People and Places,Housing General Fund,134A,Key Engineering & Hygiene Supplies LTD,12/04/2022,PE140797,38.14 ,0.00,"SUPPLY AND DELIVER AS PER QUOTATION 13050 PSFJCBCAGELOW/B/10 1 JCB CAGELOW BLACK SIZE 10 38.14 EACH 38.14 100233B 2 50X36CM OCEAN WIPE - NON ANTI BAC ABBEY BLUE ( PACK OF 50 ) 4.55 EACH 9.10 DELIVERY TO WYRE COUNCIL, COPSE ROAD DEPOT, COPSE ROAD, FLEETWOO",Protective Clothing
Wyre Council,http://opendatacommunities.org/doc/district-council/wyre,29/04/2022,People and Places,Environmental Services,132B,Key Engineering & Hygiene Supplies LTD,12/04/2022,PE140797,32.06 ,0.00,"SUPPLY AND DELIVER AS PER YOUR QUOTATION 13118 8/3/22 TRJ513RSAGE44 1 PRO ZIP COVERALL SAGE 44/XL 30.06 EACH 30.06 LOGOEMB/WYRECOUNCIL 1 EMBROIDERED LOGO FOR WYRE COUNCIL 2.00 EACH 2.00  DELIVERY TO WYRE COUNCIL, COPSE ROAD DEPOT, COPSE ROAD, FLEETWOOD, F",Protective Clothing
Wyre Council,http://opendatacommunities.org/doc/district-council/wyre,29/04/2022,People and Places,Environmental Services,132B,Key Engineering & Hygiene Supplies LTD,12/04/2022,PE140797,749.50 ,0.00,"SUPPLY AND DELIVER 50 BOXES OF STRONG BLUE REFUSE BAGS 18/29, 39, 90 LITRE PER 200, CODE BL2939BS  DELIVERY TO WYRE COUNCIL, COPSE ROAD DEPOT, COPSE ROAD, FLEETWOOD, FY7 6RP.","Provision of Bins, Boxes and Sacks"
Wyre Council,http://opendatacommunities.org/doc/district-council/wyre,29/04/2022,People and Places,Environmental Services,132B,Key Engineering & Hygiene Supplies LTD,12/04/2022,PE140797,143.00 ,0.00,SUPPLY AND DELIVER AS PER QUOTATION 13323 22/3/22 POGL890/LARGE 10 GL890 BLUE NITRILE POWDER FREE GLOVES - LARGE ( BOX OF 100 ) 7.15 EACH 71.50 POGL890/XL 10 GL890 BLUE NITRILE POWDER FREE GLOVES - XL ( BOX OF 100 ) 7.15 EACH 71.50  DELIVERY TO WYRE COUNC,Purchase of Tools or Equipment
Wyre Council,http://opendatacommunities.org/doc/district-council/wyre,29/04/2022,People and Places,Environmental Services,132B,MC & MA Stewart (Haulage) LTD,12/04/2022,PE140843,"1,426.00 ",0.00,"Supply and deliver 2 full loads (40m3 each) @ £35.65 per cubic metreTo be delivered to Memorial Park, Fleetwood - 1st week and 2nd week in March.At £1426.00 per load x 2 Total order £2852.00Contact details prior to arrival: Mark Stanley on 07501",Purchase of Tools or Equipment
Wyre Council,http://opendatacommunities.org/doc/district-council/wyre,29/04/2022,People and Places,Support Services,135B,Balmers GM LTD,11/04/2022,PE140712,"5,000.00 ",0.00,"FAO Steve Pulman   To Supply  One new Allett 10 Bladed 24” Tournament c/w groomer Reference Quotation dated 15-11-2021 @ £5000.00 + vat  Delivery to Wyre Council, Copse Road Depot, Copse Road, Fleetwood, FY7 6RP,  FAO Gary Scott",Purchase of Tools or Equipment
Wyre Council,http://opendatacommunities.org/doc/district-council/wyre,29/04/2022,People and Places,Planning and Development Servs,132C,Opal Design LTD,12/04/2022,PE140822,100.30 ,0.00,Remove sinks and water heaters at Fleetwood Market,Purchase of Tools or Equipment
Wyre Council,http://opendatacommunities.org/doc/district-council/wyre,29/04/2022,Resources,Support Services,135B,TMR Executive Agency LTD,25/04/2022,RS139783,500.00 ,0.00,Franking Machine Maintenance - 8th Feb 22 - 7th Feb 23,Purchase of Tools or Equipment
Wyre Council,http://opendatacommunities.org/doc/district-council/wyre,29/04/2022,People and Places,Support Services,135B,ENDURA GROUP LTD T/A LANDSCAPE SUPPLY COMPANY,25/04/2022,PE141046,95.70 ,0.00,Supply and deliverOregon pro strimmer harness                     2476       15.95     6              95.70,Purchase of Tools or Equipment
Wyre Council,http://opendatacommunities.org/doc/district-council/wyre,29/04/2022,People and Places,Support Services,135B,ENDURA GROUP LTD T/A LANDSCAPE SUPPLY COMPANY,25/04/2022,PE141046,48.36 ,0.00,Flexible bucket 42ltr                                        5655       8.06        6              48.36,Purchase of Tools or Equipment
Wyre Council,http://opendatacommunities.org/doc/district-council/wyre,29/04/2022,People and Places,Support Services,135B,ENDURA GROUP LTD T/A LANDSCAPE SUPPLY COMPANY,25/04/2022,PE141046,25.91 ,0.00,Silky gomtaro blade 300mm                         2123       25.91     1              25.91,Purchase of Tools or Equipment
Wyre Council,http://opendatacommunities.org/doc/district-council/wyre,29/04/2022,People and Places,Support Services,135B,ENDURA GROUP LTD T/A LANDSCAPE SUPPLY COMPANY,25/04/2022,PE141046,39.90 ,0.00,Bulldog premier edging iron                        2331       19.95     2              39.90,Purchase of Tools or Equipment
Wyre Council,http://opendatacommunities.org/doc/district-council/wyre,29/04/2022,People and Places,Support Services,135B,ENDURA GROUP LTD T/A LANDSCAPE SUPPLY COMPANY,25/04/2022,PE141046,75.80 ,0.00,Oregon helmet combination                       0380       18.95     4              75.80,Purchase of Tools or Equipment
Wyre Council,http://opendatacommunities.org/doc/district-council/wyre,29/04/2022,People and Places,Support Services,135B,ENDURA GROUP LTD T/A LANDSCAPE SUPPLY COMPANY,25/04/2022,PE141046,43.42 ,0.00,Sartra bypass lopper                                       2890       21.71     2              43.42,Purchase of Tools or Equipment
Wyre Council,http://opendatacommunities.org/doc/district-council/wyre,29/04/2022,People and Places,Support Services,135B,ENDURA GROUP LTD T/A LANDSCAPE SUPPLY COMPANY,25/04/2022,PE141046,8.96 ,0.00,Hardpoint saw 560mm                                   2113       8.96        1              8.96,Purchase of Tools or Equipment
Wyre Council,http://opendatacommunities.org/doc/district-council/wyre,29/04/2022,People and Places,Support Services,135B,ENDURA GROUP LTD T/A LANDSCAPE SUPPLY COMPANY,25/04/2022,PE141046,107.70 ,0.00,Sartra dutch hoe                                              2244       17.95     6              107.70,Purchase of Tools or Equipment
Wyre Council,http://opendatacommunities.org/doc/district-council/wyre,29/04/2022,People and Places,Support Services,135B,ENDURA GROUP LTD T/A LANDSCAPE SUPPLY COMPANY,25/04/2022,PE141046,31.26 ,0.00,Cooper pegler minipro sprayer 1.5ltr        2495       15.63     2              31.26,Purchase of Tools or Equipment
Wyre Council,http://opendatacommunities.org/doc/district-council/wyre,29/04/2022,People and Places,Support Services,135B,ENDURA GROUP LTD T/A LANDSCAPE SUPPLY COMPANY,25/04/2022,PE141046,95.70 ,0.00,Bellota xpert secateurs                                  2187       15.95     6              95.70,Purchase of Tools or Equipment
Wyre Council,http://opendatacommunities.org/doc/district-council/wyre,29/04/2022,People and Places,Support Services,135B,ENDURA GROUP LTD T/A LANDSCAPE SUPPLY COMPANY,25/04/2022,PE141046,38.84 ,0.00,Stainless steel planting trowel                    2485       9.71        4              38.84,Purchase of Tools or Equipment
Wyre Council,http://opendatacommunities.org/doc/district-council/wyre,29/04/2022,People and Places,Support Services,135B,ENDURA GROUP LTD T/A LANDSCAPE SUPPLY COMPANY,25/04/2022,PE141046,15.73 ,0.00,Trader digging spade                                      2568       15.73     1              15.73Total                                                                                                                      660.81   Deliver to Wyre,Purchase of Tools or Equipment
Wyre Council,http://opendatacommunities.org/doc/district-council/wyre,29/04/2022,Resources,Support Services,135B,Amazon Business,28/04/2022,RS141162,10.82 ,0.00,UEVIN Bolts and Nuts Set M8 Stainless Steel Hex Socket Head Machine Bolts(Screws) and Nuts Assortment Kit. (Pack of 72),Purchase of Tools or Equipment
Wyre Council,http://opendatacommunities.org/doc/district-council/wyre,29/04/2022,Resources,Support Services,135B,Amazon Business,28/04/2022,RS141160,7.49 ,0.00,"500 Pcs Flat Washers, JatilEr Metal Washers Assorted Washers Kit M2, M2.5, M3, M4, M5, M6, M8, M10, Stainless Steel Flat Washers Small Screws Washer Assortment Set for Home Decoration General Repair",Purchase of Tools or Equipment
Wyre Council,http://opendatacommunities.org/doc/district-council/wyre,29/04/2022,People and Places,Cultural and Related Services,132A,Fylde Coast YMCA,11/04/2022,PE140785,"1,640.00 ",0.00,Ticket Income from Boxing Show at Marine Hall,Refund of Ticket Sales to Ext Promoters
Wyre Council,http://opendatacommunities.org/doc/district-council/wyre,29/04/2022,People and Places,Cultural and Related Services,132A,POULTON DRAMA,27/04/2022,PE141116,"4,396.00 ",0.00,Refund of ticket sales - Witness for the Prosecution,Refund of Ticket Sales to Ext Promoters
Wyre Council,http://opendatacommunities.org/doc/district-council/wyre,29/04/2022,People and Places,Cultural and Related Services,132A,A M Productions (North West) LTD,11/04/2022,PE140786,"6,163.00 ",0.00,Refund of ticket sales - Marine Hall 17/12/21,Refund of Ticket Sales to Ext Promoters
Wyre Council,http://opendatacommunities.org/doc/district-council/wyre,29/04/2022,People and Places,Cultural and Related Services,132A,Cou-Cou Theatre Productions CIC,19/04/2022,PE140853,"5,514.00 ",0.00,Gross ticket income for Aladdin Jnr - Feb 2022,Refund of Ticket Sales to Ext Promoters
Wyre Council,http://opendatacommunities.org/doc/district-council/wyre,29/04/2022,People and Places,Cultural and Related Services,132A,Last Choir Singing Community Foundation,27/04/2022,PE141122,"2,709.00 ",0.00,Refund of ticket sales at Marine Hall 9/3/22,Refund of Ticket Sales to Ext Promoters
Wyre Council,http://opendatacommunities.org/doc/district-council/wyre,29/04/2022,People and Places,Cultural and Related Services,132A,Scream Theatre Schools LLP,29/04/2022,PE141123,"1,820.00 ",0.00,Refund of ticket sales,Refund of Ticket Sales to Ext Promoters
Wyre Council,http://opendatacommunities.org/doc/district-council/wyre,29/04/2022,People and Places,Public Transport,133G,G W SHELTER SOLUTIONS LTD,12/04/2022,PE140883,"7,234.00 ",0.00,"*** Confirmation Order ***For installation by 31 March 2022Supply and install Arun cantilever bus shelter as your quotation GWQ900 - installation on B5266 Normoss Road, Poulton-le-Fylde FY3 8QP",Repairs to Non-WBC Buildings
Wyre Council,http://opendatacommunities.org/doc/district-council/wyre,29/04/2022,People and Places,Cultural and Related Services,132A,Opal Design LTD,12/04/2022,PE140815,134.37 ,0.00,Repair to sink/basin at Garstang Road Cemetery,Responsive Building Maintenance
Wyre Council,http://opendatacommunities.org/doc/district-council/wyre,29/04/2022,People and Places,Planning and Development Servs,132C,Opal Design LTD,12/04/2022,PE140823,81.73 ,0.00,Investigate cistern in gents toilets at Copse Road,Responsive Building Maintenance
Wyre Council,http://opendatacommunities.org/doc/district-council/wyre,29/04/2022,People and Places,Support Services,135B,Opal Design LTD,12/04/2022,PE140813,185.09 ,0.00,Replace hydroboil tap in Civic kitchen,Responsive Building Maintenance
Wyre Council,http://opendatacommunities.org/doc/district-council/wyre,29/04/2022,People and Places,Support Services,135B,Opal Design LTD,12/04/2022,PE140818,40.50 ,0.00,Repair to radiator in HR,Responsive Building Maintenance
Wyre Council,http://opendatacommunities.org/doc/district-council/wyre,29/04/2022,People and Places,Support Services,135B,Opal Design LTD,12/04/2022,PE140821,40.50 ,0.00,Investigate leaking water heater Room 51,Responsive Building Maintenance
Wyre Council,http://opendatacommunities.org/doc/district-council/wyre,29/04/2022,People and Places,Support Services,135B,Opal Design LTD,12/04/2022,PE140820,54.00 ,0.00,Investigate boiler faults in Civic Centre,Responsive Building Maintenance
Wyre Council,http://opendatacommunities.org/doc/district-council/wyre,29/04/2022,People and Places,Support Services,135B,Opal Design LTD,12/04/2022,PE140824,381.31 ,0.00,Investigate and replace taps in Room 117,Responsive Building Maintenance
Wyre Council,http://opendatacommunities.org/doc/district-council/wyre,29/04/2022,People and Places,Cultural and Related Services,132A,GARRY CARR BUILDING SERVICES LTD,19/04/2022,PE140911,212.00 ,0.00,repair vandalism damage,Responsive Building Maintenance
Wyre Council,http://opendatacommunities.org/doc/district-council/wyre,29/04/2022,People and Places,Highways,133B,Glasdon UK LTD,25/04/2022,PE141010,463.53 ,0.00,Supply one black phoenix memorial bench with plaque.Plaque inscription to read Treasured memories of John Whalley from 1940 to 2021One of Fleetwood’s finest trawlermen.“Head to the wind all the way Pops”Loved and missed every dayFrom all you,Seats and Shelters (Non BM)
Wyre Council,http://opendatacommunities.org/doc/district-council/wyre,29/04/2022,People and Places,Highways,133B,Glasdon UK LTD,25/04/2022,PE141012,463.53 ,0.00,"Supply one black phoenix memorial bench with plaque.Plaque inscription to read In the Memory of Thomas (Tom) Simeyfrom 10/07/1943 to 29/06/2021Please deliver bench to Copse Road Depot, Copse Road, Fleetwood.  Please contact Bob Greaves on 07",Seats and Shelters (Non BM)
Wyre Council,http://opendatacommunities.org/doc/district-council/wyre,29/04/2022,People and Places,Highways,133B,Glasdon UK LTD,25/04/2022,PE141011,463.53 ,0.00,"Supply one black phoenix memorial bench with plaque.Plaque inscription to read In the memory of  Bob Walker from 1943 to 2021Please deliver bench to Copse Road Depot, Copse Road, Fleetwood.  Please contact Bob Greaves on 07967 116043 for acc",Seats and Shelters (Non BM)
Wyre Council,http://opendatacommunities.org/doc/district-council/wyre,29/04/2022,People and Places,Environmental Services,132B,Harrison External Display Systems,12/04/2022,PE140865,856.00 ,0.00,SUPPLY AND DELIVER AS PER QUOTATON: 00000786748 NO - 1.83m X 0.91m SIZE PRINTED FLAG DOUBLE SIDED ON REVERSE ON KNITTED POLYESTER WITH ROPE AND TODDLE AND ANTI FRAY MESH FINISH `NO DOG AS PER JOB 64192`` @ PRICE QUOTED £107.00 X 8,"Signs, Signals etc - Provision and Maint"
Wyre Council,http://opendatacommunities.org/doc/district-council/wyre,29/04/2022,People and Places,Environmental Services,132B,Harrison External Display Systems,12/04/2022,PE140865,14.95 ,0.00,"STANDARD DELIVERY TO WYRE COUNCIL, COPSE ROAD DEPOT, COPSE ROAD, FLEETWOOD, LANCASHIRE, FY7 6RP.","Signs, Signals etc - Provision and Maint"
Wyre Council,http://opendatacommunities.org/doc/district-council/wyre,29/04/2022,People and Places,Support Services,135B,Crown Computing LTD,13/04/2022,PE140429,975.00 ,0.00,Provision and maintenance of Crown flexi system April 2021 - March 2022,Software Maintenance
Wyre Council,http://opendatacommunities.org/doc/district-council/wyre,29/04/2022,Resources,Support Services,135B,Crown Computing LTD,25/04/2022,RS140739,975.00 ,0.00,Provision and maintenance of Crown flexi system April 2021 - March 2022,Software Maintenance
Wyre Council,http://opendatacommunities.org/doc/district-council/wyre,29/04/2022,Resources,Support Services,135B,Crown Computing LTD,25/04/2022,RS141042,"1,810.00 ",0.00,Crown upgrade from V12 to V14 inclusive of PS and PM days x 5 total,Software Maintenance
Wyre Council,http://opendatacommunities.org/doc/district-council/wyre,29/04/2022,Resources,Support Services,135B,NDL Software Ltd,07/04/2022,RS140244,"37,000.00 ",0.00,"Quotation No: 11342/1743  SX Enterprise  £34,000.00 Service Day     £24,000.00 Concession    -£21,000.00",Software Maintenance
Wyre Council,http://opendatacommunities.org/doc/district-council/wyre,29/04/2022,People and Places,Cultural and Related Services,132A,Tina Warren,26/04/2022,PE141065,960.00 ,0.00,Fee for Easter HAF sessions,Special Events
Wyre Council,http://opendatacommunities.org/doc/district-council/wyre,29/04/2022,People and Places,Cultural and Related Services,132A,Salina Somalya,26/04/2022,PE141096,960.00 ,0.00,Fee for Easter HAF Sessions,Special Events
Wyre Council,http://opendatacommunities.org/doc/district-council/wyre,29/04/2022,People and Places,Cultural and Related Services,132A,Tina Dempsey,26/04/2022,PE141061,720.00 ,0.00,Fee for Easter HAF sessions,Special Events
Wyre Council,http://opendatacommunities.org/doc/district-council/wyre,29/04/2022,People and Places,Cultural and Related Services,132A,JANINE WALKER ART,20/04/2022,PE140981,720.00 ,0.00,Fee for Easter HAF sessions,Special Events
Wyre Council,http://opendatacommunities.org/doc/district-council/wyre,29/04/2022,People and Places,Current Assets,130B,Standard Fuel Oils,12/04/2022,PE140873,"50,695.93 ",0.00,"CONFIRMATION ORDER FOR35057 LITRES OF WHITE DIESEL @ 144.61ppl DELIVERED 31/3/2022@ 8AM DELIVERY TO WYRE COUNCIL, COPSE ROAD DEPOT, COPSE ROAD, FLEETWOOD, FY7 6RP.",Stock - Copse Road Fuel
Wyre Council,http://opendatacommunities.org/doc/district-council/wyre,29/04/2022,Resources,Current Assets,130B,Whistl Uk Limited,19/04/2022,RS140685,352.33 ,0.00,postage for 21-22,Stores Purchases
Wyre Council,http://opendatacommunities.org/doc/district-council/wyre,29/04/2022,Resources,Current Assets,130B,Whistl Uk Limited,12/04/2022,RS140489,346.36 ,0.00,Postage 2021-2022,Stores Purchases
Wyre Council,http://opendatacommunities.org/doc/district-council/wyre,29/04/2022,Resources,Current Assets,130B,Whistl Uk Limited,12/04/2022,RS140489,4.80 ,0.00,Postage 2021-2022,Stores Purchases
Wyre Council,http://opendatacommunities.org/doc/district-council/wyre,29/04/2022,People and Places,Support Services,135B, The Play Inspection Company LTD,12/04/2022,PE140807,"1,495.00 ",0.00,Two Day RPII Operational Inspectors CourseTraining and Examiners Fee,Technical Training
Wyre Council,http://opendatacommunities.org/doc/district-council/wyre,29/04/2022,People and Places,Support Services,135B, The Play Inspection Company LTD,12/04/2022,PE140807,840.00 ,0.00,RPII Operational Examination - four candidates,Technical Training
Wyre Council,http://opendatacommunities.org/doc/district-council/wyre,29/04/2022,Resources,Cultural and Related Services,132A,Daisy Communications LTD,26/04/2022,RS140870,9.77 ,0.00,Monthly Charges,Telephone - Buildings and Offices
Wyre Council,http://opendatacommunities.org/doc/district-council/wyre,29/04/2022,Resources,Cultural and Related Services,132A,Daisy Communications LTD,26/04/2022,RS140870,9.48 ,0.00,Monthly Charges,Telephone - Buildings and Offices
Wyre Council,http://opendatacommunities.org/doc/district-council/wyre,29/04/2022,Resources,Cultural and Related Services,132A,Daisy Communications LTD,26/04/2022,RS140870,68.57 ,0.00,Monthly Charges,Telephone - Buildings and Offices
Wyre Council,http://opendatacommunities.org/doc/district-council/wyre,29/04/2022,Resources,Environmental Services,132B,Daisy Communications LTD,26/04/2022,RS140870,9.48 ,0.00,Monthly Charges,Telephone - Buildings and Offices
Wyre Council,http://opendatacommunities.org/doc/district-council/wyre,29/04/2022,Resources,Planning and Development Servs,132C,Daisy Communications LTD,26/04/2022,RS140870,0.46 ,0.00,Monthly Charges,Telephone - Buildings and Offices
Wyre Council,http://opendatacommunities.org/doc/district-council/wyre,29/04/2022,Resources,Support Services,135B,Daisy Communications LTD,26/04/2022,RS140870,29.47 ,0.00,Monthly Charges,Telephone - Buildings and Offices
Wyre Council,http://opendatacommunities.org/doc/district-council/wyre,29/04/2022,Resources,Support Services,135B,Daisy Communications LTD,26/04/2022,RS140870,9.51 ,0.00,Monthly Charges,Telephone - Buildings and Offices
Wyre Council,http://opendatacommunities.org/doc/district-council/wyre,29/04/2022,Resources,Support Services,135B,Daisy Communications LTD,26/04/2022,RS140870,"1,913.62 ",0.00,Monthly Charges,Telephone - Buildings and Offices
Wyre Council,http://opendatacommunities.org/doc/district-council/wyre,29/04/2022,Resources,Planning and Development Servs,132C,Daisy Communications LTD,26/04/2022,RS140870,1.95 ,0.00,Monthly Charges,Telephone - Buildings and Offices
Wyre Council,http://opendatacommunities.org/doc/district-council/wyre,29/04/2022,Resources,Planning and Development Servs,132C,Daisy Communications LTD,26/04/2022,RS140870,9.48 ,0.00,Monthly Charges,Telephone - Buildings and Offices
Wyre Council,http://opendatacommunities.org/doc/district-council/wyre,29/04/2022,Resources,Cultural and Related Services,132A,Daisy Communications LTD,26/04/2022,RS140870,53.94 ,0.00,Monthly Charges,Telephone - Buildings and Offices
Wyre Council,http://opendatacommunities.org/doc/district-council/wyre,29/04/2022,Resources,Support Services,135B,Daisy Communications LTD,26/04/2022,RS140870,1.95 ,0.00,Monthly Charges,Telephone - Buildings and Offices
Wyre Council,http://opendatacommunities.org/doc/district-council/wyre,29/04/2022,Resources,Cultural and Related Services,132A,Daisy Communications LTD,26/04/2022,RS140870,18.96 ,0.00,Monthly Charges,Telephone - Buildings and Offices
Wyre Council,http://opendatacommunities.org/doc/district-council/wyre,29/04/2022,Resources,Cultural and Related Services,132A,Daisy Communications LTD,26/04/2022,RS140870,9.48 ,0.00,Monthly Charges,Telephone - Buildings and Offices
Wyre Council,http://opendatacommunities.org/doc/district-council/wyre,29/04/2022,Resources,Cultural and Related Services,132A,Daisy Communications LTD,26/04/2022,RS140870,58.94 ,0.00,Monthly Charges,Telephone - Buildings and Offices
Wyre Council,http://opendatacommunities.org/doc/district-council/wyre,29/04/2022,Resources,Cultural and Related Services,132A,Daisy Communications LTD,26/04/2022,RS140870,9.69 ,0.00,Monthly Charges,Telephone - Buildings and Offices
Wyre Council,http://opendatacommunities.org/doc/district-council/wyre,29/04/2022,Resources,Environmental Services,132B,Daisy Communications LTD,26/04/2022,RS140870,28.44 ,0.00,Monthly Charges,Telephone - Buildings and Offices
Wyre Council,http://opendatacommunities.org/doc/district-council/wyre,29/04/2022,Resources,Support Services,135B,Civica UK LTD,26/04/2022,RS141069,570.00 ,0.00,Year End Training on 28th Feb 2022Jo AndertonNic Singleton,Training - Non HR Controlled
Wyre Council,http://opendatacommunities.org/doc/district-council/wyre,29/04/2022,People and Places,Environmental Services,132B,M J Wilkinson,25/04/2022,PE141016,"1,193.36 ",0.00,   MISC PLANT HIRE SEA WALL WORKS,Vehicle Hire
Wyre Council,http://opendatacommunities.org/doc/district-council/wyre,29/04/2022,People and Places,Environmental Services,132B,M J Wilkinson,25/04/2022,PE141018,"2,205.85 ",0.00,   MISC PLANT HIRE SEA WALL WORKS,Vehicle Hire
Wyre Council,http://opendatacommunities.org/doc/district-council/wyre,29/04/2022,People and Places,Environmental Services,132B,M J Wilkinson,25/04/2022,PE141015,473.12 ,0.00,   MISC PLANT HIRE SEA WALL WORKS,Vehicle Hire
Wyre Council,http://opendatacommunities.org/doc/district-council/wyre,29/04/2022,People and Places,Environmental Services,132B,M J Wilkinson,25/04/2022,PE141017,236.56 ,0.00,   MISC PLANT HIRE SEA WALL WORKS,Vehicle Hire
Wyre Council,http://opendatacommunities.org/doc/district-council/wyre,29/04/2022,People and Places,Non Service Related Exp,137F,Stuart Taylor International Ltd,11/04/2022,PE140753,"18,740.00 ",0.00,Kioti PO71 CXN,Vehicles
Wyre Council,http://opendatacommunities.org/doc/district-council/wyre,29/04/2022,People and Places,Non Service Related Exp,137F,Stuart Taylor International Ltd,11/04/2022,PE140756,"22,617.00 ",0.00,1 Kioti CK3530 Pre Registered Ex demo With less than 20 hours on the clock Complete with KL4010E Loader with euro 8 head stock Euro 8 Bucket and a 3rd Service for Grab Bucket LWC 4FT Bucket Grab on quick release hoses and quick release euro 8 brackets Fit,Vehicles
Wyre Council,http://opendatacommunities.org/doc/district-council/wyre,29/04/2022,People and Places,Non Service Related Exp,137F,Stuart Taylor International Ltd,11/04/2022,PE140755,"13,600.00 ",0.00,To Supply 1 Kioti CS2520 Pre Registered Ex Demo Tractor With less than 20 hours on the clock Complete with a KL 115C Loader Front Bucket Fitted with Turf Tyres @ £13600.00 + vat Less Trade in price of £3500.00 + vat for a Kubota B1610 Balance to pay £1010,Vehicles
Wyre Council,http://opendatacommunities.org/doc/district-council/wyre,29/04/2022,People and Places,Non Service Related Exp,137F,Stuart Taylor International Ltd,11/04/2022,PE140754,"12,120.00 ",0.00,Kioti Orange PO71 CXN,Vehicles
Wyre Council,http://opendatacommunities.org/doc/district-council/wyre,29/04/2022,People and Places,Non Service Related Exp,137F,Stuart Taylor International Ltd,11/04/2022,PE140757,"-18,740.00 ",0.00,Kioti PO71 CXN,Vehicles
Wyre Council,http://opendatacommunities.org/doc/district-council/wyre,29/04/2022,People and Places,Non Service Related Exp,137F,Stuart Taylor International Ltd,11/04/2022,PE140760,"-12,120.00 ",0.00,Kioti Orange PO71 CXN,Vehicles
Wyre Council,http://opendatacommunities.org/doc/district-council/wyre,29/04/2022,People and Places,Planning and Development Servs,132C,St Gobain Building Distribution LTD,11/04/2022,PE140765,46.26 ,0.00,Contractors white matt emulsion paint,Welcome Back Fund
Wyre Council,http://opendatacommunities.org/doc/district-council/wyre,29/04/2022,People and Places,Planning and Development Servs,132C,Preston City Council,12/04/2022,PE140867,59.52 ,0.00,4 x Creatival Bus Stop Posters,Welcome Back Fund
Wyre Council,http://opendatacommunities.org/doc/district-council/wyre,29/04/2022,People and Places,Planning and Development Servs,132C,Preston City Council,13/04/2022,PE140897,6.00 ,0.00,Creatival Posters A3 + A4,Welcome Back Fund
Wyre Council,http://opendatacommunities.org/doc/district-council/wyre,29/04/2022,People and Places,Planning and Development Servs,132C,Preston City Council,13/04/2022,PE140895,120.00 ,0.00,Creatival Leaflets,Welcome Back Fund
Wyre Council,http://opendatacommunities.org/doc/district-council/wyre,29/04/2022,People and Places,Planning and Development Servs,132C,Preston City Council,13/04/2022,PE140898,54.68 ,0.00,Creatival Posters AO,Welcome Back Fund
Wyre Council,http://opendatacommunities.org/doc/district-council/wyre,29/04/2022,People and Places,Planning and Development Servs,132C,Visual Print and Design Ltd,13/04/2022,PE140505,225.00 ,0.00,"12,000 a5 leaflets for events",Welcome Back Fund
